Cogmind - Beta 9.6 --- EXPLORER MODE // 2020.05.17 @ 08:04:30 // AFD2019/Pay2Buy Player: hemo Result: Escaped! Performance ------------- Evolutions (9) 4500 Regions Visited (34) 6800 Robots Destroyed (833) 4165 Value Destroyed (39940) 39940 Prototype IDs (87) 1740 Alien Tech Used (0) 0 Bonus (-2810) -2810 TOTAL SCORE: 54335 Bonus ------- High Alert Combat Kills 2214 Follower Combat Kills 9214 Entered Garrisons 1000 Used RIF Installer 2500 Network Hubs Disabled 800 Aligned with FarCom 300 Met Data Miner 300 Met Zhirov 300 A7 Reached Mainframe 300 Met R17 at Cetus 500 Met MAIN.C 5000 Win 3000 Friendly Fire -28238 Cogmind --------- Core Integrity 1104/1600 Matter 733/800 Energy 164/170 System Corruption 18% Temperature Cool (6) Movement Flying (17) Location To Epsilon Eridani Parts ------- > --- POWER (2) -------- Makeshift Power Source > --- PROPULSION (2) --- Experimental Q-thruster Experimental Q-thruster > --- UTILITY (18) ----- Experimental Matter Compressor Improved Armor Integrity Analyzer Experimental Core Shielding Improved Propulsion Shielding Relay Coupler [Grunt] (42) > --- WEAPON (4) ------- 1C-UTU's Sword "Choppy" > --- INVENTORY (10) --- Quantum Reactor Energy Mantle Relay Coupler [Brawler] (51) Relay Coupler [Duelist] (29) Relay Coupler [Sentry] (38) Relay Coupler [Demolisher] (43) Relay Coupler [Specialist] (39) Relay Coupler [Hunter] (28) Guided Remote Datajack Peak State ------------ > --- POWER ------------ Improved Quantum Reactor Improved Quantum Reactor > --- PROPULSION ------- Centrium Wheel High-density Centrium Wheel > --- UTILITY ---------- Experimental Power Amplifier Experimental Energy Well Experimental Matter Compressor Experimental Targeting Computer Advanced Target Analyzer Experimental Core Analyzer Improved Armor Integrity Analyzer Layered Medium Armor Plating Thermal Barrier Experimental Force Field Energy Mantle Relay Coupler [Swarmer] Relay Coupler [Grunt] Relay Coupler [Grunt] Relay Coupler [Grunt] Relay Coupler [Duelist] System Restoration Module Trap Reconfigurator > --- WEAPON ----------- Enhanced Nova Cannon Perforator Guided Remote Datajack > --- INVENTORY -------- Quantum Reactor Layered Medium Armor Plating Relay Coupler [Brawler] Relay Coupler [Duelist] Relay Coupler [Sentry] Relay Coupler [Demolisher] Relay Coupler [Specialist] Relay Coupler [Hunter] Compact Linear Accelerator 1C-UTU's Sword "Choppy" [Rating: 204] Favorites ----------- Power Improved Quantum Reactor Engine Cooled Deuterium Engine Power Core Nuclear Core Reactor Improved Quantum Reactor Propulsion Centrium Wheel Wheel Centrium Wheel Flight Unit Field Propulsion Array Utility Relay Coupler [Grunt] Device Improved Cooling System Storage Experimental Energy Well Processor Advanced Visual Processing Unit Hackware Relay Coupler [Grunt] Protection Layered Medium Armor Plating Weapon Gauss Cannon Energy Gun Dispersion Rifle Energy Cannon Enhanced Nova Cannon Ballistic Gun Minigun Ballistic Cannon Gauss Cannon Launcher Mini Grenade Launcher Special Weapon Remote Datajack Impact Weapon Flail Slashing Weapon Makeshift Axe Build | -11 -10 -10 -10 -9 -8 -8 -8 -8 -7 -7 -7 -7 -7 -7 -6 -6 -6 -5 -5 -5 -5 -5 -4 -4 -4 -4 -3 -3 -3 -3 -3 -2 -1 -1 ------- Run | Scr Mat Min Exi Min Mat Gar Mat Sto Fac Gar Fac Low Low Dat Pro Fac Gar Fac Ext Cet Arc Hub Fac Upp Upp Zhi Pro Res Gar Res Gar Res Acc Com Slots Evolved 19 | . 1 . . . 4 . . . 2 . . . . . . 2 . 2 . . . . 2 . . . . 2 . . . 2 2 . Power 1 | . . . . . . . . . . . . . . . . . . . . . . . . . . . . 1 . . . . . . Propulsion . | . . . . . . . . . . . . . . . . . . . . . . . . . . . . . . . . . . . Utility 16 | . 1 . . . 2 . . . 2 . . . . . . 2 . 2 . . . . 2 . . . . 1 . . . 2 2 . Weapon 2 | . . . . . 2 . . . . . . . . . . . . . . . . . . . . . . . . . . . . . Parts Attached 243 | . 2 3 . . 9 2 6 2 8 15 8 1 3 . 5 8 12 28 6 3 2 9 29 . 1 . 2 34 8 10 15 2 5 5 Power 4 | . . 1 . . 1 1 . . . . . . . . . . . . . . . . 1 . . . . . . . . . . . Engine 3 | . . 1 . . 1 1 . . . . . . . . . . . . . . . . . . . . . . . . . . . . Core . | . . . . . . . . . . . . . . . . . . . . . . . . . . . . . . . . . . . Reactor 1 | . . . . . . . . . . . . . . . . . . . . . . . 1 . . . . . . . . . . . Propulsion 5 | . . . . . 1 . 1 . . . . . . . . 2 . . . . . . 1 . . . . . . . . . . . Treads . | . . . . . . . . . . . . . . . . . . . . . . . . . . . . . . . . . . . Leg . | . . . . . . . . . . . . . . . . . . . . . . . . . . . . . . . . . . . Wheel 5 | . . . . . 1 . 1 . . . . . . . . 2 . . . . . . 1 . . . . . . . . . . . Hover . | . . . . . . . . . . . . . . . . . . . . . . . . . . . . . . . . . . . Flight . | . . . . . . . . . . . . . . . . . . . . . . . . . . . . . . . . . . . Utility 138 | . . 1 . . 2 1 5 2 8 10 8 1 2 . 5 6 12 15 3 1 1 2 12 . 1 . . 12 5 4 13 2 3 1 Device 42 | . . 1 . . 1 . . . 3 . 2 1 . . . 4 1 5 1 . . 1 7 . 1 . . 4 1 2 6 . 1 . Storage 12 | . . . . . 1 . 1 . 3 . . . 1 . 2 1 . . 1 . . . 1 . . . . . . . 1 . . . Processor 2 | . . . . . . . . . . . . . . . . . . 1 . . . . . . . . . . . 1 . . . . Hackware 78 | . . . . . . . 4 2 1 10 5 . 1 . 3 1 11 9 1 1 1 1 4 . . . . 8 4 1 6 2 2 . Protection 4 | . . . . . . 1 . . 1 . 1 . . . . . . . . . . . . . . . . . . . . . . 1 Artifact . | . . . . . . . . . . . . . . . . . . . . . . . . . . . . . . . . . . . Weapon 96 | . 2 1 . . 5 . . . . 5 . . 1 . . . . 13 3 2 1 7 15 . . . 2 22 3 6 2 . 2 4 Energy Gun 3 | . 1 . . . . . . . . . . . . . . . . 2 . . . . . . . . . . . . . . . . Energy Cannon 20 | . . . . . . . . . . . . . . . . . . . . . . . 9 . . . 1 7 . . 1 . 1 1 Ballistic Gun 2 | . . . . . 2 . . . . . . . . . . . . . . . . . . . . . . . . . . . . . Ballistic Cannon 23 | . . . . . 2 . . . . . . . 1 . . . . 1 1 1 . 3 1 . . . . 6 2 3 . . . 2 Launcher 2 | . 1 . . . 1 . . . . . . . . . . . . . . . . . . . . . . . . . . . . . Special Weapon 36 | . . 1 . . . . . . . 2 . . . . . . . 6 1 1 1 4 5 . . . 1 9 1 3 1 . . . Impact Weapon . | . . . . . . . . . . . . . . . . . . . . . . . . . . . . . . . . . . . Slashing Weapon 10 | . . . . . . . . . . 3 . . . . . . . 4 1 . . . . . . . . . . . . . 1 1 Piercing Weapon . | . . . . . . . . . . . . . . . . . . . . . . . . . . . . . . . . . . . Special Melee Weapon . | . . . . . . . . . . . . . . . . . . . . . . . . . . . . . . . . . . . Unidentified Prototypes 1 | . . 1 . . . . . . . . . . . . . . . . . . . . . . . . . . . . . . . . Parts Lost 91 | . . 2 . . 6 3 5 2 3 1 3 . 1 . 1 3 . 2 11 . . 9 10 . . . . 4 . . 1 1 . 23 Power 10 | . . 1 . . 1 1 . 1 . . 1 . . . . . . . . . . 1 . . . . . 1 . . . . . 3 Propulsion 9 | . . . . . 2 . 1 . . 1 . . . . . 1 . 1 1 . . 1 . . . . . . . . . 1 . . Utility 46 | . . . . . . . 2 . 1 . 1 . . . 1 . . 1 7 . . 6 7 . . . . 1 . . 1 . . 18 Weapon 26 | . . 1 . . 3 2 2 1 2 . 1 . 1 . . 2 . . 3 . . 1 3 . . . . 2 . . . . . 2 Highest Loss Streak 22 | . . 2 . . 2 1 3 1 1 1 1 . 1 . 1 1 . 1 6 . . 4 5 . . . . 3 . . 1 1 . 22 Average Slot Usage (%) 89 | . 60 90 100 100 91 78 84 75 77 90 89 90 91 92 89 95 97 96 84 85 88 76 84 85 95 95 95 93 95 95 94 94 92 91 Engine 1 | . 12 7 12 12 7 7 8 3 . . . . . . . . . . . . . . . . . . . . . . . . . . Reactor 4 | . . . . . . . . . . . 1 7 7 7 7 6 6 5 5 5 5 5 5 5 5 5 5 8 9 9 9 8 7 6 Wheel 9 | . 25 25 25 25 11 8 8 8 7 7 7 7 7 7 7 10 12 10 10 11 11 7 10 10 10 10 10 9 9 9 9 8 7 5 Device 14 | . 2 12 12 12 16 9 . . 4 10 5 3 5 . . 8 3 6 8 15 16 12 34 30 40 40 40 25 25 26 24 20 21 21 Storage 2 | . . . . . 8 8 1 . 1 5 . . . 7 2 . . . 2 5 5 4 1 . . . . 4 8 9 8 8 7 6 Processor 8 | . 5 25 25 25 16 16 16 16 15 7 7 7 7 7 7 6 6 8 11 11 11 10 5 5 5 5 5 4 4 4 4 4 3 4 Hackware 19 | . . . . . . . 13 13 14 17 27 29 28 28 30 33 37 36 23 14 16 15 8 15 15 15 15 22 19 18 20 28 27 27 Protection 4 | . . . . . . 6 6 2 6 7 6 7 7 7 7 6 6 5 5 5 5 3 5 5 5 5 5 4 4 4 4 4 3 3 Energy Cannon 1 | . . . . . . . 3 . . . . . . . . . . . . . . . 4 5 5 5 4 2 4 4 4 4 2 2 Ballistic Gun 1 | . . . . . 8 7 9 8 3 . . . . . . . . . . . . . . . . . . . . . . . . . Ballistic Cannon 9 | . . . . . 5 . . 6 13 15 14 14 13 14 14 12 12 11 10 13 11 11 9 10 10 10 10 10 8 8 4 4 3 3 Special Weapon 3 | . . 2 12 12 2 . 7 6 . 6 7 7 7 7 7 6 6 3 . 1 4 1 . . . . . . . . 3 4 3 2 Slashing Weapon 3 | . . . . . 1 8 8 8 6 6 7 7 7 7 7 4 6 3 2 . . . . . . . . . . . . . . . Naked Turns . | . . . . . . . . . . . . . . . . . . . . . . . . . . . . . . . . . . . Heaviest Build 128 | 10 13 12 9 9 19 24 35 42 49 49 41 41 42 42 55 62 58 65 59 65 65 65 104 99 109 109 111 127 113 128 128 112 124 124 Greatest Support 40 | 24 24 24 24 24 28 28 28 28 28 28 28 28 28 28 28 28 20 26 32 32 32 32 36 36 36 36 36 36 36 36 36 40 40 40 Greatest Overweight (x) 6 | . . . . . 1 . 1 1 1 1 1 1 1 1 1 3 2 3 3 2 2 2 2 2 3 3 3 3 3 3 3 3 3 6 Average Overweight (x) 1 | . . . . . . . . . . 1 1 1 1 1 1 2 2 2 1 1 2 . 1 2 2 3 3 2 2 3 2 2 2 2 Largest Inventory Capacity 10 | 10 10 10 10 10 10 10 10 10 10 10 10 10 10 10 10 10 10 10 10 10 10 10 10 10 10 10 10 10 10 10 10 10 10 10 Average Capacity 10 | 10 10 10 10 10 10 10 10 10 10 10 10 10 10 10 10 10 10 10 10 10 10 10 10 10 10 10 10 10 10 10 10 10 10 10 Most Carried 10 | . 9 10 8 9 9 10 10 10 10 10 10 10 10 10 10 10 10 10 10 7 6 8 10 10 10 10 10 10 10 10 10 9 10 10 Average Carried 8 | . 1 9 8 8 4 7 9 9 7 9 7 9 9 10 9 5 8 8 8 6 5 5 9 10 10 10 10 8 9 9 9 8 8 9 Final Capacity 10 | 10 10 10 10 10 10 10 10 10 10 10 10 10 10 10 10 10 10 10 10 10 10 10 10 10 10 10 10 10 10 10 10 10 10 10 Final Carried 10 | . 9 8 8 9 3 10 10 10 10 9 10 10 10 10 10 5 10 10 7 6 5 7 10 10 10 10 10 10 10 9 10 8 10 9 Class Distribution -------------------- 44% | Bothacker-Mutant 17% | Bothacker-Tank 9% | Hacker-Mutant 8% | Botlord-Mutant 5% | Hacker-Assassin 4% | Botlord-Tank 4% | Commander-Mutant 3% | Bothacker-Skirmisher Dominant Class ---------------- Hacker-Mutant | -10/Materials Hacker-Mutant | -10/Mines Hacker-Mutant | -10/Exiles Hacker-Assassin | -9/Mines Hacker-Assassin | -8/Materials Hacker-Assassin | -8/Garrison Bothacker-Mutant | -8/Materials Bothacker-Mutant | -8/Storage Hacker-Mutant | -7/Factory Bothacker-Mutant | -7/Garrison Bothacker-Mutant | -7/Factory Bothacker-Mutant | -7/Lower Caves Bothacker-Mutant | -7/Lower Caves Bothacker-Mutant | -7/Data Miner Bothacker-Mutant | -6/Proximity Caves Bothacker-Mutant | -6/Factory Bothacker-Mutant | -6/Garrison Bothacker-Mutant | -5/Factory Bothacker-Mutant | -5/Extension Bothacker-Tank | -5/Cetus Bothacker-Mutant | -5/Archives Bothacker-Tank | -5/Hub_04(d) Bothacker-Tank | -4/Factory Bothacker-Mutant | -4/Upper Caves Bothacker-Mutant | -4/Upper Caves Bothacker-Tank | -4/Zhirov Bothacker-Tank | -3/Proximity Caves Bothacker-Tank | -3/Research Botlord-Mutant | -3/Garrison Botlord-Tank | -3/Research Botlord-Mutant | -3/Garrison Botlord-Mutant | -2/Research Botlord-Tank | -1/Access Botlord-Tank | -1/Command Resources | -11 -10 -10 -10 -9 -8 -8 -8 -8 -7 -7 -7 -7 -7 -7 -6 -6 -6 -5 -5 -5 -5 -5 -4 -4 -4 -4 -3 -3 -3 -3 -3 -2 -1 -1 ----------- Run | Scr Mat Min Exi Min Mat Gar Mat Sto Fac Gar Fac Low Low Dat Pro Fac Gar Fac Ext Cet Arc Hub Fac Upp Upp Zhi Pro Res Gar Res Gar Res Acc Com Matter Collected 23958 | . 524 30 . . 708 62 349 350 966 235 1182 44 177 . 362 1562 297 1568 532 242 246 538 2572 132 235 . 165 2266 1999 2506 1449 740 730 1190 Remotely . | . . . . . . . . . . . . . . . . . . . . . . . . . . . . . . . . . . . Salvage Created 32207 | . 832 255 . 46 1476 532 1799 1894 1339 . 1060 129 77 . 172 1959 388 1458 623 511 48 739 4466 233 180 . 219 2903 1930 3435 907 353 1278 966 Parts . | . . . . . . . . . . . . . . . . . . . . . . . . . . . . . . . . . . . Haulers Intercepted 12 | . 2 . . . 2 . 2 . . . . . . . . 1 . . . . . 1 1 . . . . 1 . 1 . . 1 . Recyclers Shooed . | . . . . . . . . . . . . . . . . . . . . . . . . . . . . . . . . . . . Parts Field Recycled . | . . . . . . . . . . . . . . . . . . . . . . . . . . . . . . . . . . . Retrieved Matter . | . . . . . . . . . . . . . . . . . . . . . . . . . . . . . . . . . . . Parts Self-Destructed . | . . . . . . . . . . . . . . . . . . . . . . . . . . . . . . . . . . . Prevented . | . . . . . . . . . . . . . . . . . . . . . . . . . . . . . . . . . . . Kills | -11 -10 -10 -10 -9 -8 -8 -8 -8 -7 -7 -7 -7 -7 -7 -6 -6 -6 -5 -5 -5 -5 -5 -4 -4 -4 -4 -3 -3 -3 -3 -3 -2 -1 -1 ------- Run | Scr Mat Min Exi Min Mat Gar Mat Sto Fac Gar Fac Low Low Dat Pro Fac Gar Fac Ext Cet Arc Hub Fac Upp Upp Zhi Pro Res Gar Res Gar Res Acc Com Combat Hostiles Destroyed 570 | . 19 7 . 1 32 11 34 35 32 . 27 1 2 . 6 32 7 27 13 9 1 10 84 5 8 . 6 55 29 35 10 5 13 14 Melee 81 | . 11 6 . . 8 8 15 25 3 . . . . . . . 3 2 . . . . . . . . . . . . . . . . Guns 36 | . . . . . 11 3 11 5 3 . . . . . . . . 3 . . . . . . . . . . . . . . . . Cannons 427 | . . . . . 12 . 1 5 26 . 25 1 2 . 6 30 4 22 13 9 1 10 83 5 8 . 4 54 29 35 10 5 13 14 AOE 13 | . . . . . . . 6 . . . 2 . . . . 2 . . . . . . 1 . . . 2 . . . . . . . Classes Destroyed 22 | . 5 2 . . 3 . 4 1 1 . 1 1 . . . . 1 . . . . . . 1 1 . . . . . 1 . . . Worker 40 | . . 1 . . . . 2 2 . . 2 . . . . 4 . 4 . . . . 10 . . . . 2 . 10 . . 3 . Builder 29 | . 1 1 . . 2 . . . . . 1 . . . . 3 . 3 . . . 3 10 . . . . 1 . 3 . . 1 . Tunneler 2 | . . . . . . . . . . . 1 . . . . . . . . . . . . . . . . . . . . 1 . . Hauler 12 | . 2 . . . 2 . 2 . . . . . . . . 1 . . . . . 1 1 . . . . 1 . 1 . . 1 . Recycler 12 | . . . . . . . 1 . . . . . . . . . . 1 1 . . . 2 . . . . 1 . 5 . . 1 . Carrier 6 | . . . . . . . 1 1 . . . . . . . 2 . . . . . . . . . . . . . . 2 . . . Minesweeper 2 | . . . . . . . . . . . . 1 1 . . . . . . . . . . . . . . . . . . . . . Operator 10 | . . . . . . . . 1 . . 1 . . . . . . . . . . 7 1 . . . . . . . . . . . Drone 108 | . . . . . . . . . . . . . . . . . . . . . . . . . . . . . . . 108 . . . Watcher 35 | . 3 . . . 3 . 3 1 2 . 5 . . . . 4 . 4 2 1 . 1 3 . . . . 1 . 2 . . . . Swarmer 73 | . 6 4 . . 5 . . . . . 2 . 1 . 1 4 . 3 3 . . . 8 . 6 . 3 10 6 5 4 1 1 . Grunt 260 | . 13 2 . 1 15 8 24 24 18 . 6 . . . 3 20 4 20 3 1 . 9 30 . . . 2 16 15 12 5 3 6 . Brawler 7 | . . . . . . . 2 . 1 . . . . . . 1 . . . . . . 1 . . . . . 1 1 . . . . Duelist 12 | . . . . . 2 . 2 . . . 1 . . . . 1 1 . . 1 . . 4 . . . . . . . . . . . Protector 1 | . . . . . . . 1 . . . . . . . . . . . . . . . . . . . . . . . . . . . Sentry 85 | . . . . . 9 2 3 10 5 . 5 . 1 . 1 4 . 1 5 . 1 1 18 . 1 . . 10 4 4 . . . . Demolisher 1 | . . 1 . . . . . . . . . . . . . . . . . . . . . . . . . . . . . . . . Hunter 50 | . . . . . 1 1 2 1 3 . 6 1 . . . 2 1 1 . . . . 9 . . . 1 4 . 10 2 . 1 4 Programmer 72 | . . . . . . . . . 5 . 7 . . . 1 2 . 3 2 . . . 13 . 1 . . 15 3 3 1 1 5 10 Behemoth 3 | . . . . . . . . . . . . . . . . . 1 . . . . . 1 . . . . . . . 1 . . . Cetus Guard 7 | . . . . . . . . . . . . . . . . . . . . 7 . . . . . . . . . . . . . . Samaritan 1 | . . . . . . . . . . . . . . . . . . . . . . . . . 1 . . . . . . . . . Wasp 3 | . . . . . . . . . . . . . . . . . . . . . . . . 3 . . . . . . . . . . Thug 1 | . . . . . . . . . . . . . . . . . . . . . . . . 1 . . . . . . . . . . Mutant 1 | . . . . . . . . . . . . . . . . . . . . . . . . 1 . . . . . . . . . . Best Kill Streak 18 | . 4 2 . 1 4 2 6 4 6 . 4 1 1 . 3 4 3 5 6 4 1 11 12 3 6 . 4 10 5 18 3 3 7 5 Combat Bots Only 11 | . 3 2 . 1 4 2 5 3 6 . 3 1 1 . 3 3 3 4 4 4 1 5 11 3 6 . 4 8 5 10 3 3 5 5 Max Kills in Single Turn 109 | . 1 1 . 1 2 1 6 2 1 . 3 1 1 . 1 4 1 2 2 3 1 6 3 1 2 . 2 2 2 3 109 1 4 2 Gunslinging . | . . . . . . . . . . . . . . . . . . . . . . . . . . . . . . . . . . . Exploded 5 | . . . . . . . 5 . . . 2 . . . . 2 . . . . . . 1 . . . 2 . . . . . . . Melee 1 | . 1 1 . . 1 1 1 1 1 . . . . . . . 1 1 . . . . . . . . . . . . . . . . Uniques/NPCs Destroyed . | . . . . . . . . . . . . . . . . . . . . . . . . . . . . . . . . . . . Combat | -11 -10 -10 -10 -9 -8 -8 -8 -8 -7 -7 -7 -7 -7 -7 -6 -6 -6 -5 -5 -5 -5 -5 -4 -4 -4 -4 -3 -3 -3 -3 -3 -2 -1 -1 -------- Run | Scr Mat Min Exi Min Mat Gar Mat Sto Fac Gar Fac Low Low Dat Pro Fac Gar Fac Ext Cet Arc Hub Fac Upp Upp Zhi Pro Res Gar Res Gar Res Acc Com Damage Taken 15627 | . 359 228 . 50 604 304 772 407 739 149 676 . 244 . 271 812 294 758 1070 17 49 940 1893 19 65 . 136 589 93 375 391 73 102 3148 Core 1967 | . 117 77 . 20 97 27 74 38 110 18 57 . 44 . 18 87 18 66 59 . . 114 266 3 9 . 13 57 23 23 29 7 26 470 Absorbed by Shields 3045 | . . . . . . . . . . . . . . . . . 3 . 10 16 15 10 807 1 48 . 74 545 109 391 347 70 97 502 Core Remaining (%) 72 | 100 . . . 14 . . . 57 . . . . . . 64 . 87 . . . . 76 . . . . 74 . . . 89 99 . 69 Volleys Fired 1477 | . 33 . . 2 87 10 55 36 60 26 102 4 16 3 31 115 26 107 34 16 10 26 164 10 16 . 11 118 77 58 141 23 23 37 Largest 4 | . 1 . . 1 3 1 2 2 3 1 2 2 2 1 2 2 2 3 3 3 3 3 3 3 3 . 3 3 3 3 3 2 2 4 Hottest 312 | . 40 . . 20 82 30 88 73 144 30 96 96 96 30 96 109 109 209 209 186 186 186 246 226 226 . 241 281 281 281 281 220 220 312 Shots Fired 2748 | . 33 . . 2 150 10 88 67 156 26 183 6 26 3 52 223 35 211 57 35 18 56 442 26 41 . 29 276 112 95 163 26 31 70 Gun 268 | . 28 . . . 87 8 56 31 17 . . . . . . . . 40 1 . . . . . . . . . . . . . . . Cannon 2220 | . . . . . 60 . 17 31 138 . 162 4 22 . 42 216 18 130 54 31 12 48 437 26 41 . 28 255 108 89 141 17 25 68 Launcher 7 | . 5 . . . . 2 . . . . . . . . . . . . . . . . . . . . . . . . . . . . Special 253 | . . . . 2 3 . 15 5 1 26 21 2 4 3 10 7 17 41 2 4 6 8 5 . . . 1 21 4 6 22 9 6 2 Kinetic 2002 | . 26 . . . 147 8 56 62 155 . 162 4 22 . 42 216 18 130 54 31 12 48 304 16 30 . 20 206 49 73 37 12 17 45 Thermal 474 | . 2 . . 2 3 . . . . . . . . . . . . 40 1 . . . 133 10 11 . 8 49 59 16 104 5 8 23 Explosive 7 | . 5 . . . . 2 . . . . . . . . . . . . . . . . . . . . . . . . . . . . Electromagnetic 17 | . . . . . . . 17 . . . . . . . . . . . . . . . . . . . . . . . . . . . Robot Hit Streak 47 | . 1 . . 2 22 23 24 31 32 12 22 26 27 3 20 18 18 25 14 17 18 14 47 11 24 . 36 33 22 24 26 23 17 24 Robot Miss Streak 11 | . 2 . . . 2 1 1 2 4 2 2 . 1 . 1 3 1 1 2 2 1 2 3 2 2 . 2 5 6 11 4 7 11 4 Penetration Max 2 | . . . . . . . . 1 1 . 1 . . . . 2 . 2 1 1 . 2 1 . . . . 1 1 2 2 . 2 1 Secondary Targets . | . . . . . . . . . . . . . . . . . . . . . . . . . . . . . . . . . . . Shots Hit Robots 2258 | . 96 38 . 10 143 35 129 112 130 23 139 10 24 3 44 167 36 153 38 25 16 33 317 17 32 . 26 171 54 69 60 20 26 62 Core Hits 1522 | . 14 9 . 3 60 16 60 48 52 . 48 4 6 . 10 73 11 66 34 24 2 44 244 10 14 . 18 128 88 146 158 19 51 62 Critical Hits 664 | . . . . . 7 4 8 10 21 . 16 . 2 . 9 61 5 43 5 7 3 13 72 . 3 . 3 30 59 126 58 14 37 48 Critical Kills 251 | . . . . . 5 2 2 2 10 . 4 . 1 . 4 24 2 18 2 3 1 5 29 . . . 1 11 23 53 11 5 19 14 Critical Parts Destroyed 336 | . . . . . 2 2 6 7 11 . 12 . . . 4 35 3 22 2 3 1 8 36 . 3 . 1 15 30 56 30 6 17 24 Melee Attacks 439 | . 103 40 . 8 27 34 54 58 22 20 9 5 2 . 1 12 19 13 5 . . . . . . . . . . . . . . 7 Impact 163 | . 103 40 . 8 12 . . . . . . . . . . . . . . . . . . . . . . . . . . . . . Slashing 276 | . . . . . 15 34 54 58 22 20 9 5 2 . 1 12 19 13 5 . . . . . . . . . . . . . . 7 Piercing . | . . . . . . . . . . . . . . . . . . . . . . . . . . . . . . . . . . . Sneak Attacks 32 | . 6 2 . . 3 1 6 7 1 . . 1 1 . . 2 . 2 . . . . . . . . . . . . . . . . Combat Hostiles 14 | . 2 . . . 3 1 4 4 . . . . . . . . . . . . . . . . . . . . . . . . . . Follow-up Attacks . | . . . . . . . . . . . . . . . . . . . . . . . . . . . . . . . . . . . Damage Inflicted 92048 | . 2840 1115 . 217 3290 1294 6201 4042 3801 . 3997 516 692 . 968 4986 612 4210 1966 804 370 2922 16220 424 1246 . 1515 7677 973 1389 15651 251 298 1561 Guns 3666 | . 17 . . . 1088 141 1024 481 293 . . . . . . . . 622 . . . . . . . . . . . . . . . . Cannons 52147 | . . . . . 1227 . 406 806 2704 . 3396 84 536 . 968 3763 252 2791 1966 804 370 1555 14986 424 1246 . 1016 7677 973 1132 1016 251 237 1561 Explosions 22057 | . . . . . . . 2240 . 42 . 601 . . . . 1029 . 92 . . . 1367 1234 . . . 499 . . 257 14635 . 61 . Melee 14163 | . 2823 1115 . 210 967 1153 2531 2755 762 . . 432 156 . . 194 360 705 . . . . . . . . . . . . . . . . Ramming . | . . . . . . . . . . . . . . . . . . . . . . . . . . . . . . . . . . . Kinetic 48192 | . 17 . . . 2315 141 1024 1287 2997 . 3396 84 536 . 968 3763 252 2791 1966 804 370 1555 11315 344 1035 . 784 6929 641 993 634 90 237 924 Thermal 9197 | . . . . 7 8 . 961 . . . 113 . . . . . . 704 . . . . 3983 80 211 . 731 748 332 139 382 161 . 637 Explosive 18610 | . . . . . . . 1279 . . . 488 . . . . 1029 . . . . . . 922 . . . . . . 257 14635 . . . Electromagnetic 1886 | . . . . . . . 406 . 42 . . . . . . . . 10 . . . 1367 . . . . . . . . . . 61 . Impact 4371 | . 2823 1115 . 210 223 . . . . . . . . . . . . . . . . . . . . . . . . . . . . . Slashing 9792 | . . . . . 744 1153 2531 2755 762 . . 432 156 . . 194 360 705 . . . . . . . . . . . . . . . . Piercing . | . . . . . . . . . . . . . . . . . . . . . . . . . . . . . . . . . . . Highest Corruption 18 | . . . . . . . . 1 2 . 1 . . . . 1 . 3 10 8 5 2 1 . 3 . . 2 . 3 4 2 . 18 Average Corruption 2 | . . . . . . . . 1 1 . 1 . . . . 1 . 2 7 6 1 1 1 . 1 . . 1 . 1 2 1 . 3 Corruption Purged 52 | . . . . . . . . . 3 . 1 . . . . 2 . 7 3 3 5 1 4 . 3 . . 5 . . 5 2 . 8 Effects 102 | . . . . . . . . . 10 . . . . . . 4 . 12 21 13 5 1 4 . 2 . . 1 . 3 10 . . 16 Message Errors 28 | . . . . . . . . . 3 . . . . . . 1 . 5 6 4 1 1 2 . 1 . . . . 1 1 . . 2 Matter Fused 13 | . . . . . . . . . . . . . . . . . . 1 2 . 1 . . . . . . . . . 3 . . 6 Heat Flow Errors 6 | . . . . . . . . . 1 . . . . . . . . 2 1 1 . . . . 1 . . . . . . . . . Energy Discharges 12 | . . . . . . . . . 2 . . . . . . 1 . 1 . . 2 . 2 . . . . 1 . 1 1 . . 1 Parts Rejected 2 | . . . . . . . . . . . . . . . . . . . 1 . . . . . . . . . . . . . . 1 Data Loss (minor) 10 | . . . . . . . . . 1 . . . . . . 1 . 2 1 . 1 . . . . . . . . 1 2 . . 1 Data Loss (major) 1 | . . . . . . . . . . . . . . . . . . . . 1 . . . . . . . . . . . . . . Misdirections 2 | . . . . . . . . . . . . . . . . . . . 1 . . . . . . . . . . . . . . 1 Targeting Errors 26 | . . . . . . . . . 3 . . . . . . 1 . 1 9 5 . . . . . . . . . . 3 . . 4 Weapon Failures 2 | . . . . . . . . . . . . . . . . . . . . 2 . . . . . . . . . . . . . . Overload Shots . | . . . . . . . . . . . . . . . . . . . . . . . . . . . . . . . . . . . Overflow Damage 5726 | . 379 153 . 11 105 11 738 332 119 . 206 93 101 . 10 172 . 385 61 . . 247 385 5 78 . 134 158 1 89 1752 . . 1 Projectiles 1109 | . . . . . . . . 48 70 . 104 6 19 . 10 35 . 103 61 . . 23 358 5 78 . 15 158 1 14 . . . 1 Explosions 2786 | . . . . . . . 464 . . . 102 . . . . 23 . . . . . 224 27 . . . 119 . . 75 1752 . . . Melee 1831 | . 379 153 . 11 105 11 274 284 49 . . 87 82 . . 114 . 282 . . . . . . . . . . . . . . . . Knockbacks 315 | . 20 6 . 1 7 . . 7 8 . 13 . . . 7 32 4 19 7 . . 5 48 2 2 . 9 38 17 14 24 2 3 20 Impact 27 | . 20 6 . 1 . . . . . . . . . . . . . . . . . . . . . . . . . . . . . . Kinetic 277 | . . . . . 7 . . 7 8 . 13 . . . 7 31 4 17 5 . . 5 46 2 2 . 9 37 16 14 23 2 2 20 Secondary 11 | . . . . . . . . . . . . . . . . 1 . 2 2 . . . 2 . . . . 1 1 . 1 . 1 . Self-Inflicted Damage 499 | . 57 . . . . . . . . . . . . . . 48 . . . . . 97 145 . . . 52 . . . 100 . . . Shots 14 | . 5 . . . . . . . . . . . . . . 1 . . . . . 2 4 . . . 1 . . . 1 . . . Rammed . | . . . . . . . . . . . . . . . . . . . . . . . . . . . . . . . . . . . Targets Rammed . | . . . . . . . . . . . . . . . . . . . . . . . . . . . . . . . . . . . Kicked . | . . . . . . . . . . . . . . . . . . . . . . . . . . . . . . . . . . . Crushed . | . . . . . . . . . . . . . . . . . . . . . . . . . . . . . . . . . . . Highest Temperature 843 | . 8 . . . 45 . 63 20 342 11 6 3 27 . 48 . 48 223 91 61 . 36 234 196 195 . 198 197 192 197 199 180 98 843 Average Temperature 85 | . 4 . . . 12 . 15 9 92 11 2 2 13 . 15 . 23 53 32 61 . 17 112 97 113 . 101 91 67 79 86 82 39 233 Received Heat Transfer 4255 | . 219 135 . 48 378 180 372 243 333 75 183 . 69 . 162 438 99 270 103 . . 152 433 17 . . 6 100 40 20 18 8 14 140 Effects 16 | . . . . . . . . . 1 . . . . . . . . . . . . . . . . . . . . . . . . 15 Shutdowns 3 | . . . . . . . . . . . . . . . . . . . . . . . . . . . . . . . . . . 3 Energy Bleed 1 | . . . . . . . . . . . . . . . . . . . . . . . . . . . . . . . . . . 1 Interference 4 | . . . . . . . . . . . . . . . . . . . . . . . . . . . . . . . . . . 4 Matter Decay 2 | . . . . . . . . . . . . . . . . . . . . . . . . . . . . . . . . . . 2 Short Circuit 2 | . . . . . . . . . 1 . . . . . . . . . . . . . . . . . . . . . . . . 1 Damage (minor) 3 | . . . . . . . . . . . . . . . . . . . . . . . . . . . . . . . . . . 3 Damage (core) 1 | . . . . . . . . . . . . . . . . . . . . . . . . . . . . . . . . . . 1 Siege Activations . | . . . . . . . . . . . . . . . . . . . . . . . . . . . . . . . . . . . Robots Corrupted 2 | . . . . . . . 1 . . . . . . . . . . . . . . 1 . . . . . . . . . . . . Combat Hostiles 1 | . . . . . . . 1 . . . . . . . . . . . . . . . . . . . . . . . . . . . Parts Fried . | . . . . . . . . . . . . . . . . . . . . . . . . . . . . . . . . . . . Impact Corruptions 39 | . 26 8 . 2 1 . . . . . . . . . . . . 1 1 . . . . . . . . . . . . . . . Robots Melted 1 | . . . . . . . . . . . . . . . . . . . . . . . . . . . . 1 . . . . . . Combat Hostiles 1 | . . . . . . . . . . . . . . . . . . . . . . . . . . . . 1 . . . . . . Parts Melted . | . . . . . . . . . . . . . . . . . . . . . . . . . . . . . . . . . . . Heat Transferred 7648 | . . . . 50 75 . 750 . . . 50 . . . . . . 827 . . . . 3349 74 185 . 665 629 259 111 277 111 . 236 Parts Sabotaged . | . . . . . . . . . . . . . . . . . . . . . . . . . . . . . . . . . . . Parts Stolen . | . . . . . . . . . . . . . . . . . . . . . . . . . . . . . . . . . . . Parts Stripped . | . . . . . . . . . . . . . . . . . . . . . . . . . . . . . . . . . . . Power Chain Reactions . | . . . . . . . . . . . . . . . . . . . . . . . . . . . . . . . . . . . Missiles Intercepted . | . . . . . . . . . . . . . . . . . . . . . . . . . . . . . . . . . . . Alert | -11 -10 -10 -10 -9 -8 -8 -8 -8 -7 -7 -7 -7 -7 -7 -6 -6 -6 -5 -5 -5 -5 -5 -4 -4 -4 -4 -3 -3 -3 -3 -3 -2 -1 -1 ------- Run | Scr Mat Min Exi Min Mat Gar Mat Sto Fac Gar Fac Low Low Dat Pro Fac Gar Fac Ext Cet Arc Hub Fac Upp Upp Zhi Pro Res Gar Res Gar Res Acc Com Peak Influence 1015 | . 343 155 . 114 642 453 428 367 715 248 388 . . . . 404 302 264 127 249 143 458 807 . . . . 544 1015 866 941 427 501 474 Average Influence 243 | . 159 61 . 27 303 280 218 156 178 160 102 . . . . 103 187 78 41 83 120 147 344 . . . . 224 781 509 680 390 344 204 Maximum Alert Level 3 | . 1 . . . 2 2 2 1 3 1 1 . . . . 2 1 1 . 1 . 2 3 . . . . 2 3 3 3 2 2 2 Low Security (%) 56 | 100 58 100 . 100 34 32 46 66 68 58 86 . . . . 87 59 91 100 93 100 77 33 . . . . 39 2 . . . 22 61 Level 1 22 | . 41 . . . 30 51 40 33 23 41 13 . . . . 9 40 8 . 6 . 15 25 . . . . 45 10 14 10 45 21 24 Level 2 14 | . . . . . 35 15 12 . 6 . . . . . . 2 . . . . . 6 32 . . . . 14 18 72 32 54 55 14 Level 3 7 | . . . . . . . . . . . . . . . . . . . . . . . 8 . . . . . 68 12 57 . . . Level 4 . | . . . . . . . . . . . . . . . . . . . . . . . . . . . . . . . . . . . Level 5 . | . . . . . . . . . . . . . . . . . . . . . . . . . . . . . . . . . . . High Security . | . . . . . . . . . . . . . . . . . . . . . . . . . . . . . . . . . . . Max Security . | . . . . . . . . . . . . . . . . . . . . . . . . . . . . . . . . . . . Squads Dispatched 233 | . 4 1 . 1 16 . 15 17 22 . 32 . . . 1 30 . 26 7 . . 4 21 . . . . 20 . 9 . 2 3 2 Investigation 115 | . 4 1 . 1 13 . 9 8 17 . 15 . . . 1 17 . 15 7 . . 1 1 . . . . 2 . 2 . . 1 . Extermination 30 | . . . . . . . . . 3 . 8 . . . . 4 . 2 . . . . 6 . . . . 4 . 1 . . . 2 Reinforcement 29 | . . . . . . . 1 3 1 . 4 . . . . 4 . 2 . . . 3 4 . . . . 3 . 2 . 2 . . Assault 12 | . . . . . . . 1 . 1 . 1 . . . . 1 . 2 . . . . 3 . . . . 1 . 1 . . 1 . Garrison 47 | . . . . . 3 . 4 6 . . 4 . . . . 4 . 5 . . . . 7 . . . . 10 . 3 . . 1 . Intercept . | . . . . . . . . . . . . . . . . . . . . . . . . . . . . . . . . . . . Construction Impeded 8 | . . . . . . . 1 1 . . . . . . . 2 . . . . . . . . . . . 2 . 2 . . . . Haulers Reinforced 4 | . . . . . . . . . . . . . . . . 1 . 1 . . . . 2 . . . . . . . . . . . Alert ID Control Effect 177 | . . . . . . . . . . . 38 . 3 . 6 35 2 43 2 . . 2 . . . . 2 13 . 4 8 11 8 . Stealth | -11 -10 -10 -10 -9 -8 -8 -8 -8 -7 -7 -7 -7 -7 -7 -6 -6 -6 -5 -5 -5 -5 -5 -4 -4 -4 -4 -3 -3 -3 -3 -3 -2 -1 -1 --------- Run | Scr Mat Min Exi Min Mat Gar Mat Sto Fac Gar Fac Low Low Dat Pro Fac Gar Fac Ext Cet Arc Hub Fac Upp Upp Zhi Pro Res Gar Res Gar Res Acc Com Distress Signals 48 | . 5 . . . 5 . . 2 . . 1 . . . . 4 . 2 2 2 . 4 8 . . . . 2 . 7 . 2 2 . Communications Jammed . | . . . . . . . . . . . . . . . . . . . . . . . . . . . . . . . . . . . Distress Signals . | . . . . . . . . . . . . . . . . . . . . . . . . . . . . . . . . . . . Times Spotted 1021 | . 32 10 . 8 52 15 52 47 52 26 77 3 11 . 24 91 23 81 24 14 3 43 90 3 8 . 13 73 20 37 29 15 15 30 Peak Tracking Total 16 | . 6 3 . 2 4 3 4 6 5 4 6 2 7 . 12 6 6 5 4 5 1 16 5 2 3 . 6 6 5 5 4 3 4 14 Tactical Retreats 47 | . 5 4 . 1 2 5 4 . . . . . . . 2 4 1 . 1 . . 7 . . . . 3 1 1 1 2 1 1 1 Traps | -11 -10 -10 -10 -9 -8 -8 -8 -8 -7 -7 -7 -7 -7 -7 -6 -6 -6 -5 -5 -5 -5 -5 -4 -4 -4 -4 -3 -3 -3 -3 -3 -2 -1 -1 ------- Run | Scr Mat Min Exi Min Mat Gar Mat Sto Fac Gar Fac Low Low Dat Pro Fac Gar Fac Ext Cet Arc Hub Fac Upp Upp Zhi Pro Res Gar Res Gar Res Acc Com Traps Triggered 25 | . . . . . 1 2 1 . 2 . . . . . . 4 12 1 1 . . . . . . . . . . 1 . . . . Indirectly . | . . . . . . . . . . . . . . . . . . . . . . . . . . . . . . . . . . . Trap Hack Attempts . | . . . . . . . . . . . . . . . . . . . . . . . . . . . . . . . . . . . Triggered . | . . . . . . . . . . . . . . . . . . . . . . . . . . . . . . . . . . . Disarmed 10 | . . . . . . . . . 6 . . . . . . . . . 1 . . 3 . . . . . . . . . . . . Reprogrammed 74 | . . . . . . . 6 9 6 . 11 . . . . 4 . 25 13 . . . . . . . . . . . . . . . Reused 75 | . . . . . . . 4 . . . 5 . . . . 14 . 2 4 . . . 17 . . . . 16 1 . 1 3 5 3 Traps Reconfigurated 174 | . . . . . . . . . . . . . . . . . . . . . . . 56 . . . . 24 22 26 17 3 20 6 Traps Extracted . | . . . . . . . . . . . . . . . . . . . . . . . . . . . . . . . . . . . Installed 3 | . . . . . . . . . . . . . . . . 1 2 . . . . . . . . . . . . . . . . . Triggered 79 | . . . . . . . 4 . . . 5 . 4 . . 14 . 2 4 . . . 17 . . . . 16 1 . 1 3 5 3 Machines | -11 -10 -10 -10 -9 -8 -8 -8 -8 -7 -7 -7 -7 -7 -7 -6 -6 -6 -5 -5 -5 -5 -5 -4 -4 -4 -4 -3 -3 -3 -3 -3 -2 -1 -1 ---------- Run | Scr Mat Min Exi Min Mat Gar Mat Sto Fac Gar Fac Low Low Dat Pro Fac Gar Fac Ext Cet Arc Hub Fac Upp Upp Zhi Pro Res Gar Res Gar Res Acc Com Machines Disabled 150 | . 7 . . 1 . 5 8 3 5 3 14 . 1 . 1 15 5 7 2 2 1 20 25 . 1 . 4 3 4 2 7 1 2 1 Max in Single Turn 19 | . 3 . . . . 2 2 1 2 1 3 . . . 1 10 1 1 1 . . 19 5 . 1 . 4 1 1 1 1 . 1 1 Garrison Access 14 | . . . . . . . 1 . 1 . 1 . . . . 2 . 2 . . . . 2 . . . . 2 . 1 . . 2 . Garrison Relay 18 | . . . . . . 2 . . . 3 . . . . . . 4 . . . . . . . . . . . 4 . 5 . . . Phase Generator 1 | . . . . . . . . . . . . . . . . . . . . . . . . . . . . . . . 1 . . . Network Hub 4 | . . . . . . . . . . . . . . . . . . . . . . 4 . . . . . . . . . . . . Machines Sabotaged 1 | . . . . . . . 1 . . . . . . . . . . . . . . . . . . . . . . . . . . . Garrisons Compromised . | . . . . . . . . . . . . . . . . . . . . . . . . . . . . . . . . . . . Overloaded Fab Kills . | . . . . . . . . . . . . . . . . . . . . . . . . . . . . . . . . . . . Fab Network Shutdowns . | . . . . . . . . . . . . . . . . . . . . . . . . . . . . . . . . . . . Hacking | -11 -10 -10 -10 -9 -8 -8 -8 -8 -7 -7 -7 -7 -7 -7 -6 -6 -6 -5 -5 -5 -5 -5 -4 -4 -4 -4 -3 -3 -3 -3 -3 -2 -1 -1 --------- Run | Scr Mat Min Exi Min Mat Gar Mat Sto Fac Gar Fac Low Low Dat Pro Fac Gar Fac Ext Cet Arc Hub Fac Upp Upp Zhi Pro Res Gar Res Gar Res Acc Com Machines Accessed 210 | . 8 1 2 1 14 . 14 13 19 . 17 . 1 4 1 21 . 23 15 3 1 8 17 . 1 4 . 11 . 2 . . 6 3 Terminals 177 | . 8 1 . . 12 . 11 12 18 . 15 . 1 . 1 18 . 21 15 3 . 8 16 . . . . 8 . 1 . . 5 3 Fabricators . | . . . . . . . . . . . . . . . . . . . . . . . . . . . . . . . . . . . Repair Stations . | . . . . . . . . . . . . . . . . . . . . . . . . . . . . . . . . . . . Recycling Units . | . . . . . . . . . . . . . . . . . . . . . . . . . . . . . . . . . . . Scanalyzers 3 | . . . . . 1 . 2 . . . . . . . . . . . . . . . . . . . . . . . . . . . Garrison Access 17 | . . . . . 1 . 1 1 1 . 2 . . . . 3 . 2 . . . . 1 . . . . 3 . 1 . . 1 . Total Hacks 906 | . 36 3 8 1 67 . 62 64 76 . 59 . 7 28 14 76 . 75 45 13 2 32 92 . 1 16 . 61 . 11 . . 40 17 Successful 600 | . 27 2 8 1 47 . 46 47 50 . 40 . 7 28 10 46 . 42 34 12 2 20 50 . 1 16 . 29 . 6 . . 20 9 Failed 306 | . 9 1 . . 20 . 16 17 26 . 19 . . . 4 30 . 33 11 1 . 12 42 . . . . 32 . 5 . . 20 8 Catastrophic 42 | . . . . . 2 . 2 . 2 . 2 . . . . 6 . 5 1 . . . 13 . . . . 7 . . . . 1 1 Database Lockouts . | . . . . . . . . . . . . . . . . . . . . . . . . . . . . . . . . . . . Manual 741 | . 32 3 1 . 61 . 56 53 65 . 54 . 2 . 11 71 . 69 43 10 . 30 85 . . . . 39 . 7 . . 35 14 Terminals 775 | . 36 3 . . 58 . 53 59 74 . 52 . 7 . 14 64 . 70 45 13 . 32 88 . . . . 47 . 7 . . 36 17 Fabricators . | . . . . . . . . . . . . . . . . . . . . . . . . . . . . . . . . . . . Repair Stations . | . . . . . . . . . . . . . . . . . . . . . . . . . . . . . . . . . . . Recycling Units . | . . . . . . . . . . . . . . . . . . . . . . . . . . . . . . . . . . . Scanalyzers 6 | . . . . . 3 . 3 . . . . . . . . . . . . . . . . . . . . . . . . . . . Garrison Access 69 | . . . . . 6 . 6 5 2 . 7 . . . . 12 . 5 . . . . 4 . . . . 14 . 4 . . 4 . Terminal Hacks 287 | . 18 1 8 1 18 . 16 17 27 . 16 . 7 28 10 14 . 15 14 7 2 6 20 . 1 16 . 9 . 2 . . 11 3 Record 38 | . . . 7 . . . . . . . . . 5 11 3 . . . . 4 2 . . . 1 5 . . . . . . . . Part Schematic 19 | . 3 1 . . . . 2 . . . . . . 9 . . . . . . . . . . . 4 . . . . . . . . Robot Schematic 7 | . . . . . 2 . . . . . . . . 5 . . . . . . . . . . . . . . . . . . . . Robot Analysis 95 | . 14 . . . 12 . 1 1 18 . 8 . . . 6 6 . 3 5 . . . 9 . . 3 . 2 . . . . 7 . Prototype ID Bank 7 | . . . . . . . . . . . . . . 3 . . . . . . . . . . . 4 . . . . . . . . Open Door 6 | . . . . 1 . . . 3 . . . . . . . . . . . 1 . . . . . . . . . . . . . 1 Branch Access Points 3 | . . . . . . . 1 . . . . . . . . 1 . 1 . . . . . . . . . . . . . . . . Machine Index 3 | . 1 . . . . . 1 . . . . . . . . 1 . . . . . . . . . . . . . . . . . . Terminal Index 9 | . . . . . 1 . . 1 1 . 1 . . . . . . 1 . . . 1 1 . . . . 1 . . . . 1 . Garrison Index 5 | . . . . . . . . . 1 . 1 . . . . . . 1 . . . . 1 . . . . . . . . . 1 . Unreport Threat 54 | . . . . . 3 . 4 5 4 . 3 . 2 . 1 4 . 3 3 2 . 2 8 . . . . 5 . 2 . . 2 1 Locate Traps 11 | . . . . . . . 4 3 1 . 1 . . . . . . 1 . . . . 1 . . . . . . . . . . . Disarm Traps 3 | . . . . . . . . . 1 . . . . . . . . . 1 . . 1 . . . . . . . . . . . . Reprogram Traps 20 | . . . . . . . 3 4 1 . 2 . . . . 2 . 5 3 . . . . . . . . . . . . . . . Recall Investigation 3 | . . . . . . . . . . . . . . . . . . . 2 . . 1 . . . . . . . . . . . . Recall Assault 1 | . . . . . . . . . . . . . . . . . . . . . . . . . . . . 1 . . . . . . Zone Layout 1 | . . . . . . . . . . . . . . . . . . . . . . 1 . . . . . . . . . . . . EX-Prototype ID Bank 1 | . . . 1 . . . . . . . . . . . . . . . . . . . . . . . . . . . . . . . Disengage Seal 1 | . . . . . . . . . . . . . . . . . . . . . . . . . . . . . . . . . . 1 Fabricator Hacks . | . . . . . . . . . . . . . . . . . . . . . . . . . . . . . . . . . . . Repair Station Hacks . | . . . . . . . . . . . . . . . . . . . . . . . . . . . . . . . . . . . Recycling Unit Hacks . | . . . . . . . . . . . . . . . . . . . . . . . . . . . . . . . . . . . Scanalyzer 4 | . . . . . 2 . 2 . . . . . . . . . . . . . . . . . . . . . . . . . . . Insert Component 2 | . . . . . 1 . 1 . . . . . . . . . . . . . . . . . . . . . . . . . . . Analyze 2 | . . . . . 1 . 1 . . . . . . . . . . . . . . . . . . . . . . . . . . . Garrison Access Hacks 9 | . . . . . 1 . . . 1 . . . . . . 2 . . . . . . . . . . . 3 . 1 . . 1 . Unlock Access 6 | . . . . . 1 . . . 1 . . . . . . 1 . . . . . . . . . . . 2 . 1 . . . . Seal Access 3 | . . . . . . . . . . . . . . . . 1 . . . . . . . . . . . 1 . . . . 1 . Unauthorized Hacks 300 | . 9 1 . . 26 . 28 30 22 . 24 . . . . 30 . 27 20 5 . 14 30 . . . . 17 . 3 . . 8 6 Terminals 263 | . 9 1 . . 22 . 23 26 21 . 20 . . . . 24 . 23 20 5 . 14 28 . . . . 12 . 1 . . 8 6 Track 2 | . . . . . . . . . . . . . . . . . . . . . . . . . . . . . . . . . 1 1 Assimilate 11 | . . . . . 2 . . 1 1 . 3 . . . . 1 . . . . . . 3 . . . . . . . . . . . Botnet 158 | . 8 . . . 11 . 11 11 17 . 13 . . . . 17 . 16 13 3 . 7 16 . . . . 8 . 1 . . 4 2 Detonate 17 | . . . . . 2 . 4 2 . . . . . . . . . 1 . 1 . 3 1 . . . . 1 . . . . 1 1 Disrupt 59 | . 1 . . . 6 . 6 7 2 . 4 . . . . 5 . 5 6 1 . 4 7 . . . . 2 . . . . 1 2 Operators 10 | . . . . . 1 . 1 1 1 . . . . . . 1 . 1 1 . . . 1 . . . . 1 . . . . 1 . Sabotage 6 | . . 1 . . . . 1 4 . . . . . . . . . . . . . . . . . . . . . . . . . . Fabricators . | . . . . . . . . . . . . . . . . . . . . . . . . . . . . . . . . . . . Repair Stations . | . . . . . . . . . . . . . . . . . . . . . . . . . . . . . . . . . . . Recycling Units . | . . . . . . . . . . . . . . . . . . . . . . . . . . . . . . . . . . . Scanalyzers 2 | . . . . . 1 . 1 . . . . . . . . . . . . . . . . . . . . . . . . . . . Extract 2 | . . . . . 1 . 1 . . . . . . . . . . . . . . . . . . . . . . . . . . . Garrison Access 35 | . . . . . 3 . 4 4 1 . 4 . . . . 6 . 4 . . . . 2 . . . . 5 . 2 . . . . Restock 1 | . . . . . . . . . . . 1 . . . . . . . . . . . . . . . . . . . . . . . Reprogram 29 | . . . . . 3 . 4 4 1 . 3 . . . . 6 . 2 . . . . 1 . . . . 4 . 1 . . . . Eject 5 | . . . . . . . . . . . . . . . . . . 2 . . . . 1 . . . . 1 . 1 . . . . Data Cores Recovered 1 | . . . . . . . . . . . 1 . . . . . . . . . . . . . . . . . . . . . . . Used 1 | . . . . . . . . . . . 1 . . . . . . . . . . . . . . . . . . . . . . . Hacking Detections 181 | . 8 1 . . 14 . 11 12 19 . 17 . 1 . 1 20 . 21 13 3 . 8 13 . . . . 10 . 1 . . 6 2 Full Trace Events 111 | . 8 . . . 13 . 11 8 17 . 14 . . . 1 15 . 13 7 . . 1 . . . . . 1 . 1 . . 1 . Feedback Events 8 | . . . . . . . . 1 2 . 1 . . . . 2 . 1 1 . . . . . . . . . . . . . . . Corruption 8 | . . . . . . . . 1 2 . 1 . . . . 2 . 1 1 . . . . . . . . . . . . . . . Feedback Blocked . | . . . . . . . . . . . . . . . . . . . . . . . . . . . . . . . . . . . Robot Schematics Acquired 7 | . . . . . 2 . . . . . . . . 5 . . . . . . . . . . . . . . . . . . . . Robots Built . | . . . . . . . . . . . . . . . . . . . . . . . . . . . . . . . . . . . Matter . | . . . . . . . . . . . . . . . . . . . . . . . . . . . . . . . . . . . Time . | . . . . . . . . . . . . . . . . . . . . . . . . . . . . . . . . . . . Total Robot Build Rating . | . . . . . . . . . . . . . . . . . . . . . . . . . . . . . . . . . . . Part Schematics Acquired 28 | . 3 1 . . 4 . 7 . . . . . . 9 . . . . . . . . . . . 4 . . . . . . . . Parts Built . | . . . . . . . . . . . . . . . . . . . . . . . . . . . . . . . . . . . Matter . | . . . . . . . . . . . . . . . . . . . . . . . . . . . . . . . . . . . Time . | . . . . . . . . . . . . . . . . . . . . . . . . . . . . . . . . . . . Total Part Build Rating . | . . . . . . . . . . . . . . . . . . . . . . . . . . . . . . . . . . . Parts Repaired . | . . . . . . . . . . . . . . . . . . . . . . . . . . . . . . . . . . . Time . | . . . . . . . . . . . . . . . . . . . . . . . . . . . . . . . . . . . Parts Recycled . | . . . . . . . . . . . . . . . . . . . . . . . . . . . . . . . . . . . Recycled Matter . | . . . . . . . . . . . . . . . . . . . . . . . . . . . . . . . . . . . Retrieved Matter . | . . . . . . . . . . . . . . . . . . . . . . . . . . . . . . . . . . . Retrieved Components . | . . . . . . . . . . . . . . . . . . . . . . . . . . . . . . . . . . . Parts Scanalyzed 2 | . . . . . 1 . 1 . . . . . . . . . . . . . . . . . . . . . . . . . . . Part Schematics Acquired 2 | . . . . . 1 . 1 . . . . . . . . . . . . . . . . . . . . . . . . . . . Parts Damaged . | . . . . . . . . . . . . . . . . . . . . . . . . . . . . . . . . . . . Bothacking | -11 -10 -10 -10 -9 -8 -8 -8 -8 -7 -7 -7 -7 -7 -7 -6 -6 -6 -5 -5 -5 -5 -5 -4 -4 -4 -4 -3 -3 -3 -3 -3 -2 -1 -1 ------------ Run | Scr Mat Min Exi Min Mat Gar Mat Sto Fac Gar Fac Low Low Dat Pro Fac Gar Fac Ext Cet Arc Hub Fac Upp Upp Zhi Pro Res Gar Res Gar Res Acc Com Used RIF Installer 5 | . . . . . . 1 . . . 1 . . . . . . 1 . . . . . . . . . . . 1 . 1 . . . Robot Detection 1 | . . . . . . . . . . . . . . . . . 1 . . . . . . . . . . . . . . . . . Alert ID Control 1 | . . . . . . . . . . 1 . . . . . . . . . . . . . . . . . . . . . . . . Autooverride 2 | . . . . . . . . . . . . . . . . . . . . . . . . . . . . . 1 . 1 . . . Robots Hacked 198 | . . . . . . . 10 5 . 21 16 2 3 1 10 4 15 32 2 2 6 4 5 . . . 1 17 2 5 16 7 10 2 Non-combat 36 | . . . . . . . 3 . . . 4 . . . . 3 . 4 . . 6 2 3 . . . . 3 . . . 3 3 2 Combat 162 | . . . . . . . 7 5 . 21 12 2 3 1 10 1 15 28 2 2 . 2 2 . . . 1 14 2 5 16 4 7 . Autooverrided 9 | . . . . . . . . . . . . . . . . . . . . . . . . . . . . . . 2 3 . 4 . Robot Hacks Applied 199 | . . . . . . . 11 5 . 23 17 2 3 3 10 6 16 32 2 2 6 4 5 . . . 1 17 2 3 14 7 6 2 parse_system 14 | . . . . . . . . . . 4 1 . . 3 . 1 2 2 . . . . . . . . . . . . 1 . . . start_evac 1 | . . . . . . . 1 . . . . . . . . . . . . . . . . . . . . . . . . . . . find_station 1 | . . . . . . . . . . . . . . . . 1 . . . . . . . . . . . . . . . . . . link_fov 1 | . . . . . . . . . . . . . . . . . . . . . . . . . . . . 1 . . . . . . disrupt_area 1 | . . . . . . . . . . . . 1 . . . . . . . . . . . . . . . . . . . . . . overwrite_iff 7 | . . . . . . . . 1 . . . . . . . . . . . . . 1 . . . . . 2 . . . 2 1 . streamctrl_high 1 | . . . . . . . 1 . . . . . . . . . . . . . . . . . . . . . . . . . . . formatsys_low 25 | . . . . . . . 1 . . . 3 . . . . 3 . 2 . . 6 . 2 . . . . 1 . . . 2 3 2 formatsys_high 148 | . . . . . . . 8 4 . 19 13 1 3 . 10 1 14 28 2 2 . 3 3 . . . 1 13 2 3 13 3 2 . Relay Couplers Released 126 | . . . . . . 10 2 . 7 13 2 . 4 . . 5 19 11 . . . . 6 . . . . 10 14 . 20 . 3 . Ejected 9 | . . . . . . . . . . . . . . . . . . 3 . . . . 3 . . . . 3 . . . . . . Machine Destruction 92 | . . . . . . 10 2 . 3 13 2 . . . . 2 19 . . . . . 3 . . . . 1 14 . 20 . 3 . Programmers 25 | . . . . . . . . . 4 . . . 4 . . 3 . 8 . . . . . . . . . 6 . . . . . . Attached 78 | . . . . . . . 4 2 1 10 5 . 1 . 3 1 11 9 1 1 1 1 4 . . . . 8 4 1 6 2 2 . Robots Rewired 4 | . . . . . . . . . . . . . . . . . . . . . . . . 4 . . . . . . . . . . Allies Hacked 17 | . . . . . . . . . 3 . 1 1 1 . . 1 . 3 . . . . . . . . . 3 . 2 . 2 . . Hacks Repelled . | . . . . . . . . . . . . . . . . . . . . . . . . . . . . . . . . . . . Allies | -11 -10 -10 -10 -9 -8 -8 -8 -8 -7 -7 -7 -7 -7 -7 -6 -6 -6 -5 -5 -5 -5 -5 -4 -4 -4 -4 -3 -3 -3 -3 -3 -2 -1 -1 -------- Run | Scr Mat Min Exi Min Mat Gar Mat Sto Fac Gar Fac Low Low Dat Pro Fac Gar Fac Ext Cet Arc Hub Fac Upp Upp Zhi Pro Res Gar Res Gar Res Acc Com Total Allies 287 | . . 3 . 2 7 . 20 10 10 19 23 2 4 . 11 23 14 37 10 2 6 4 8 4 . . 1 25 2 5 16 7 10 2 Largest Group 19 | . . 3 3 5 6 . 7 3 5 12 15 9 10 7 10 17 6 19 7 7 10 10 4 5 5 5 6 8 3 6 12 12 8 8 Highest-Rated Group 618 | . . 40 40 88 88 . 110 71 134 314 398 212 231 129 252 480 164 577 315 288 359 359 150 153 153 149 179 308 138 321 618 570 401 279 Highest-Rated Ally 156 | . . 16 16 31 31 . 27 29 38 81 81 54 54 32 94 47 29 49 156 156 149 44 49 37 37 37 37 64 47 64 64 64 69 69 Total Orders 709 | . . . . 2 1 . 13 1 37 15 114 6 14 . 18 96 19 56 13 6 2 7 38 4 7 1 8 58 16 31 83 14 21 8 STAY 196 | . . . . 1 1 . 4 . 13 6 46 1 2 . 2 23 5 14 3 1 . 1 7 . 2 . 3 19 8 4 25 1 3 1 GOTO 188 | . . . . . . . 6 1 6 2 26 2 2 . 6 12 4 11 4 2 1 3 13 2 1 1 1 15 . 12 40 6 6 3 ROAM 1 | . . . . . . . . . . . . . . . . . . . . . . . . . . . . . . . 1 . . . FOLLOW 270 | . . . . 1 . . 2 . 18 7 42 3 10 . 10 31 3 17 6 3 1 3 18 2 4 . 4 24 8 15 16 7 12 3 AID 51 | . . . . . . . . . . . . . . . . 30 7 14 . . . . . . . . . . . . . . . . TUNNEL 1 | . . . . . . . 1 . . . . . . . . . . . . . . . . . . . . . . . . . . . PICKUP 1 | . . . . . . . . . . . . . . . . . . . . . . . . . . . . . . . . . . 1 RETURN 1 | . . . . . . . . . . . . . . . . . . . . . . . . . . . . . . . 1 . . . Ally Attacks 2066 | . . . . 16 76 . 80 61 144 61 287 1 18 . 50 313 51 399 28 57 5 24 31 . 1 . 11 171 9 38 23 70 39 2 Total Damage 41333 | . . . . 262 988 . 944 914 2573 703 5291 14 371 . 911 5244 684 8632 624 1217 104 648 867 . 43 . 156 4404 163 1036 881 2216 1370 73 Kills 324 | . . . . 3 17 . 9 7 23 8 56 . 5 . 9 46 2 56 8 6 3 7 4 . . . 3 21 . 4 8 11 8 . Allies Corrupted 15 | . . . . . . . . . . . . . . . . . . 3 1 . . 2 1 . . . . 6 1 1 . . . . Allies Melted 1 | . . . . . . . . . . . . . . . . . . . . . . . . . . . . . . . 1 . . . Intel | -11 -10 -10 -10 -9 -8 -8 -8 -8 -7 -7 -7 -7 -7 -7 -6 -6 -6 -5 -5 -5 -5 -5 -4 -4 -4 -4 -3 -3 -3 -3 -3 -2 -1 -1 ------- Run | Scr Mat Min Exi Min Mat Gar Mat Sto Fac Gar Fac Low Low Dat Pro Fac Gar Fac Ext Cet Arc Hub Fac Upp Upp Zhi Pro Res Gar Res Gar Res Acc Com Robot Analysis Total 94 | . 14 . . . 12 . 1 1 18 . 8 . . . 6 6 . 3 5 . . . 8 . . 3 . 2 . . . . 7 . Derelict Logs Recovered . | . . . . . . . . . . . . . . . . . . . . . . . . . . . . . . . . . . . Drone Launches 120 | . . . . . . . . . . . . . . . . . . . . . . . . . . . . . . . 120 . . . Drone Recoveries . | . . . . . . . . . . . . . . . . . . . . . . . . . . . . . . . . . . . Decoded 0b10 Intel 7 | . . . . . . . . . 7 . . . . . . . . . . . . . . . . . . . . . . . . . Patrols 1 | . . . . . . . . . 1 . . . . . . . . . . . . . . . . . . . . . . . . . Investigations 3 | . . . . . . . . . 3 . . . . . . . . . . . . . . . . . . . . . . . . . Guards 3 | . . . . . . . . . 3 . . . . . . . . . . . . . . . . . . . . . . . . . Exploration | -11 -10 -10 -10 -9 -8 -8 -8 -8 -7 -7 -7 -7 -7 -7 -6 -6 -6 -5 -5 -5 -5 -5 -4 -4 -4 -4 -3 -3 -3 -3 -3 -2 -1 -1 ------------- Run | Scr Mat Min Exi Min Mat Gar Mat Sto Fac Gar Fac Low Low Dat Pro Fac Gar Fac Ext Cet Arc Hub Fac Upp Upp Zhi Pro Res Gar Res Gar Res Acc Com Turns Passed 40835 | 11 1298 781 212 311 1502 520 2054 1339 2119 1006 3156 1295 521 107 1002 3127 870 3123 834 280 459 447 3298 542 728 137 656 2550 1698 1236 1710 349 747 810 Spaces Moved 29536 | 18 890 705 215 278 1143 370 1445 898 1710 783 2422 981 405 89 659 2271 599 2394 589 197 169 505 2348 409 563 115 391 1723 1200 832 1053 201 537 429 Core 14 | 11 . . . . . . . . . . . . . . . . . . . . . . . . . . . . . . . . . 3 Treads . | . . . . . . . . . . . . . . . . . . . . . . . . . . . . . . . . . . . Legs . | . . . . . . . . . . . . . . . . . . . . . . . . . . . . . . . . . . . Wheels 29135 | 7 890 705 215 278 1143 370 1445 898 1710 783 2422 981 405 89 659 2271 599 2394 589 197 169 204 2348 409 563 115 391 1723 1200 832 1053 201 537 340 Hover . | . . . . . . . . . . . . . . . . . . . . . . . . . . . . . . . . . . . Flight 387 | . . . . . . . . . . . . . . . . . . . . . . 301 . . . . . . . . . . . 86 Fastest Speed 17 | 50 90 90 90 90 90 100 100 100 100 110 110 110 110 110 110 100 100 100 95 100 110 40 100 110 110 120 120 110 110 120 110 110 110 17 Average Speed 107 | 65 90 90 90 90 95 100 107 103 104 110 110 110 110 110 110 107 100 105 101 108 110 67 109 110 119 120 120 118 119 120 117 113 114 104 Slowest Speed 150 | 90 90 90 90 90 100 100 110 110 110 110 110 110 110 110 110 120 100 110 120 110 110 110 110 110 120 120 120 120 120 120 120 120 120 150 Overloaded Moves . | . . . . . . . . . . . . . . . . . . . . . . . . . . . . . . . . . . . Propulsion Burnouts . | . . . . . . . . . . . . . . . . . . . . . . . . . . . . . . . . . . . Robots Hopped 4 | . . . . . . . . . . . . . . . . . . . . . . . . . . . . . . . . . . 4 Cave-ins Triggered 5 | . . . . . . . . . . . . . . . . . . . 2 . . . 1 . . . . . . . 1 . . 1 Exploration Rate (%) 63 | 3 92 90 67 92 86 53 82 87 56 87 66 84 64 76 83 56 82 51 66 83 87 57 58 63 71 60 52 42 97 21 88 7 13 16 Regions Visited 34 Branch Regions 17 Pre-discovered Areas 6 | . . 1 . . . . . 1 . . . . . 1 . . . . . . . . . . . 3 . . . . . . . . Known Exits Taken 29 | 1 1 1 1 1 1 . 1 1 1 . 1 1 1 1 1 1 . 1 1 1 1 1 1 1 1 1 1 1 . 1 . 1 1 . Unknown Exits Taken . | . . . . . . . . . . . . . . . . . . . . . . . . . . . . . . . . . . . Scrap Searched . | . . . . . . . . . . . . . . . . . . . . . . . . . . . . . . . . . . . Spaces Dug 98 | . . . . . 1 . . . 6 2 3 . . . . 4 2 3 4 . . . 6 2 . . . 5 12 . 42 . . 6 Terrain Destroyed 1476 | . 38 . . . 1 4 183 3 27 2 48 1 . . 6 80 2 31 31 8 2 298 353 23 33 . 27 85 45 16 108 2 2 17 Melee 28 | . . . . . 1 . . . 6 2 3 . . . . 3 2 1 4 . . . . . . . . . . . . . . 6 Projectile 521 | . . . . . . . . 3 21 . 20 1 . . 6 22 . 18 27 8 2 16 89 23 33 . 11 85 45 13 63 2 2 11 AOE 927 | . 38 . . . . 4 183 . . . 25 . . . . 55 . 12 . . . 282 264 . . . 16 . . 3 45 . . . Actions | -11 -10 -10 -10 -9 -8 -8 -8 -8 -7 -7 -7 -7 -7 -7 -6 -6 -6 -5 -5 -5 -5 -5 -4 -4 -4 -4 -3 -3 -3 -3 -3 -2 -1 -1 --------- Run | Scr Mat Min Exi Min Mat Gar Mat Sto Fac Gar Fac Low Low Dat Pro Fac Gar Fac Ext Cet Arc Hub Fac Upp Upp Zhi Pro Res Gar Res Gar Res Acc Com Total 35524 | 17 1203 791 233 324 1385 478 1817 1193 1888 894 2729 1188 454 96 886 2713 816 2786 758 231 426 565 2736 481 585 114 554 1991 1331 928 1340 283 620 690 Wait 3386 | . 176 43 19 36 120 32 247 195 81 20 178 189 24 5 190 301 38 221 115 16 243 17 161 33 5 . 150 102 26 27 68 56 47 205 Move 29495 | 17 889 704 214 277 1142 369 1444 897 1709 782 2421 980 404 88 658 2271 598 2393 587 196 168 504 2347 408 562 114 390 1722 1199 831 1052 200 536 422 Hop 2 | . . . . . . . . . . . . . . . . . . . . . . . . . . . . . . . . . . 2 Pick Up 114 | . . . . 1 . 11 3 1 3 13 5 4 3 . . . 15 10 . . . . 11 . . . . 6 11 . 11 . 5 1 Fast Attach 24 | . . 1 . . 3 . 1 . 1 1 . . . . . . 2 3 1 . . . 6 . 1 . . 2 1 . . . 1 . Attach 82 | . . 2 . . 6 2 3 2 3 3 3 1 2 . 2 4 3 9 3 1 1 6 10 . . . . 3 2 1 5 2 2 1 Detach 31 | . . 1 . . . 1 1 . 4 1 . . . . . . . 1 . . . 8 4 . . . . 1 3 . 2 . 1 3 Swap 137 | . 2 . . . . . 2 . 4 11 5 . 1 . 3 4 7 16 2 2 1 3 13 . . . 2 29 5 9 10 . 2 4 Drop 73 | . . . . . . 3 2 1 1 7 . 3 1 . . 1 5 5 . . . . 13 . 1 . . 6 7 . 6 . 3 8 Fire 1477 | . 33 . . 2 87 10 55 36 60 26 102 4 16 3 31 115 26 107 34 16 10 26 164 10 16 . 11 118 77 58 141 23 23 37 Melee 439 | . 103 40 . 8 27 34 54 58 22 20 9 5 2 . 1 12 19 13 5 . . . . . . . . . . . . . . 7 Ram . | . . . . . . . . . . . . . . . . . . . . . . . . . . . . . . . . . . . Kick . | . . . . . . . . . . . . . . . . . . . . . . . . . . . . . . . . . . . Crush . | . . . . . . . . . . . . . . . . . . . . . . . . . . . . . . . . . . . Escape Stasis 121 | . . . . . . 16 . . . . . . . . . . 96 . 9 . . . . . . . . . . . . . . . Rewire 100 | . . . . . . . 5 3 . 10 6 2 1 . 1 4 5 8 2 . 3 1 7 30 . . 1 2 . 2 5 2 . . Trap 3 | . . . . . . . . . . . . . . . . 1 2 . . . . . . . . . . . . . . . . . Miscellaneous 40 | . . . . . . . . . . . . . . . . . . . . . . . . . . . . . . . 40 . . . Route ------- -11/Scrapyard -10/Materials (discovered 5 exits: *Mat x3 / *Min x2) -10/Mines (discovered 3 exits: *Mat x2 / *Exi) -10/Exiles (discovered 2 exits: *Min x2) -9/Mines (discovered 2 exits: *Mat x2) -8/Materials (discovered 5 exits: *Fac x3 / *Sto / Gar) -8/Garrison -8/Materials (discovered 3 exits: *Fac x2 / *Sto) -8/Storage -7/Factory (discovered 4 exits: *Fac x2 / *Low / Gar) -7/Garrison (discovered 3 exits: *Fac x3) -7/Factory (discovered 5 exits: *Fac x4 / *Low) -7/Lower Caves -7/Lower Caves (discovered 2 exits: Fac / *Dat) -7/Data Miner -6/Proximity Caves -6/Factory (discovered 6 exits: *Fac x3 / Low x2 / Gar) -6/Garrison (discovered 3 exits: *Fac x3) -5/Factory (discovered 7 exits: *Fac x3 / *Upp x2 / *Ext x2) -5/Extension (discovered 2 exits: *Fac / *Cet) -5/Cetus (discovered 2 exits: *Fac / *Arc) -5/Archives (discovered 3 exits: *Fac / *Hub x2) -5/Hub_04(d) (discovered 2 exits: *Fac x2) -4/Factory (discovered 4 exits: *Res x3 / *Upp) -4/Upper Caves -4/Upper Caves (discovered 2 exits: *Res / *Zhi) -4/Zhirov -3/Proximity Caves -3/Research (discovered 3 exits: *Res / *Tes / Gar) -3/Garrison (discovered 3 exits: *Res x3) -3/Research -3/Garrison (discovered 3 exits: *Res x3) -2/Research -1/Access -1/Command To Epsilon Eridani History --------- Turn | Location | Event 3 | -11/Scrapyard | Identified exit to Materials 3 | -11/Scrapyard | Discovered exit to Materials (range 15) 12 | -11/Scrapyard | Entered Materials 12 | -10/Materials | Evolved 1 slot: Utility x1 131 | -10/Materials | Identified exit to Mines 131 | -10/Materials | Discovered exit to Mines (range 16) 305 | -10/Materials | Build established: Hacker-Mutant 326 | -10/Materials | Identified exit to Materials 326 | -10/Materials | Discovered exit to Materials (range 13) 799 | -10/Materials | Discovered exit to Materials (range 4) 900 | -10/Materials | Discovered exit to Materials (range 16) 956 | -10/Materials | Discovered exit to Mines (range 16) 1310 | -10/Materials | Entered Mines 1320 | -10/Mines | Met a Derelict bent on vengeance 1347 | -10/Mines | Assembled infested the area 1360 | -10/Mines | Core integrity fell below 50% 1531 | -10/Mines | Found a damaged Exp. Sensor Array with a note attached 1534 | -10/Mines | Found Prototype Device 1534 | -10/Mines | Identified Exp. Sensor Array 1551 | -10/Mines | Learned location of Storage (-8) 1585 | -10/Mines | Discovered exit to Materials (range 14) 2016 | -10/Mines | Discovered exit to Materials (range 3) 2021 | -10/Mines | Assisted by bots powering up and referring to "LRC-V3" 2071 | -10/Mines | Identified exit to Exiles 2071 | -10/Mines | Discovered exit to Exiles (range 5) 2091 | -10/Mines | Entered Exiles 2091 | -10/Exiles | Accompanied by 3 allies 2103 | -10/Exiles | Identified exit to Mines 2103 | -10/Exiles | Discovered exit to Mines (range 15) 2114 | -10/Exiles | Met 8R-AWN 2127 | -10/Exiles | Met EX-HEX 2156 | -10/Exiles | Met EX-BIN 2167 | -10/Exiles | Aligned with FarCom system 2168 | -10/Exiles | Given EX-Vault access code 2189 | -10/Exiles | Opened EX-Vault 2211 | -10/Exiles | Warned to stay clear of 0b10 Research branches 2239 | -10/Exiles | Met EX-DEC 2276 | -10/Exiles | Discovered exit to Mines (range 11) 2303 | -10/Exiles | Entered Mines 2303 | -9/Mines | Accompanied by 3 allies 2307 | -9/Mines | A weapon hastily lodged in a ceiling crevice suddenly fell to the ground 2359 | -9/Mines | Joined a pair of Derelicts in attacking an 0b10 outpost 2396 | -9/Mines | Met a Derelict shopkeep closing up shop 2491 | -9/Mines | Identified exit to Materials 2491 | -9/Mines | Discovered exit to Materials (range 13) 2492 | -9/Mines | Core integrity fell below 20% 2531 | -9/Mines | Discovered exit to Materials (range 14) 2601 | -9/Mines | Build established: Hacker-Assassin 2614 | -9/Mines | Entered Materials 2614 | -8/Materials | Accompanied by 5 allies 2614 | -8/Materials | Evolved 4 slots: Utility x2, Weapon x2 2619 | -8/Materials | Led the pair of lost Derelicts to an unsafe place 2920 | -8/Materials | Identified exit to Factory 2920 | -8/Materials | Discovered exit to Factory (range 10) 3139 | -8/Materials | Garrison activated, responded to threat 3178 | -8/Materials | Identified exit to Garrison 3360 | -8/Materials | Discovered exit to Factory (range 13) 3655 | -8/Materials | Discovered exit to Factory (range 20) 3788 | -8/Materials | Identified exit to Storage 3788 | -8/Materials | Discovered exit to Storage (range 10) 4116 | -8/Materials | Entered Garrison 4154 | -8/Garrison | Triggered checkpoint 4155 | -8/Garrison | Garrison Relay disabled 4240 | -8/Garrison | Triggered checkpoint 4338 | -8/Garrison | Triggered checkpoint 4370 | -8/Garrison | Triggered checkpoint 4478 | -8/Garrison | Identified exit to Materials 4478 | -8/Garrison | Discovered exit to Materials (range 12) 4494 | -8/Garrison | Installed Relay Interface Framework 4518 | -8/Garrison | Triggered checkpoint 4584 | -8/Garrison | Garrison Relay disabled 4636 | -8/Garrison | Entered Materials 4671 | -8/Materials | Found Chronowheel 4957 | -8/Materials | Discovered exit to Factory (range 3) 5055 | -8/Materials | Build established: Bothacker-Mutant 5564 | -8/Materials | Lost 3 parts (1n1u1w) 5685 | -8/Materials | Garrison activated, responded to threat 5820 | -8/Materials | Garrison activated, responded to threat 5885 | -8/Materials | Discovered exit to Factory (range 19) 6690 | -8/Materials | Entered Storage 6690 | -8/Storage | Accompanied by 2 allies 6918 | -8/Storage | Learned location of Armory (-3) 7474 | -8/Storage | Garrison activated, responded to threat 7596 | -8/Storage | Discovered exit to Factory (range 8) 8029 | -8/Storage | Entered Factory 8029 | -7/Factory | Evolved 2 slots: Utility x2 8145 | -7/Factory | Build established: Hacker-Mutant 8408 | -7/Factory | Allied Derelicts emerged from ambush trap array 8525 | -7/Factory | Identified exit to Lower Caves 8525 | -7/Factory | Discovered exit to Lower Caves (range 2) 8588 | -7/Factory | Identified exit to Factory 8588 | -7/Factory | Discovered exit to Factory (range 11) 8784 | -7/Factory | Allied Derelicts emerged from ambush trap array 9363 | -7/Factory | Build established: Hacker-Skirmisher 9566 | -7/Factory | Discovered exit to Factory (range 9) 9780 | -7/Factory | P-60 Hacker assimilated hostile Y-54 Guardian 9797 | -7/Factory | P-60 Hacker assimilated hostile G-47 Trooper 9934 | -7/Factory | P-60 Hacker assimilated hostile G-47 Trooper 10063 | -7/Factory | Identified exit to Garrison 10148 | -7/Factory | Entered Garrison 10148 | -7/Garrison | Accompanied by 3 allies 10184 | -7/Garrison | Triggered checkpoint 10198 | -7/Garrison | Garrison Relay disabled 10262 | -7/Garrison | Triggered checkpoint 10268 | -7/Garrison | Triggered checkpoint 10351 | -7/Garrison | Triggered checkpoint 10360 | -7/Garrison | Triggered checkpoint 10490 | -7/Garrison | Build established: Bothacker-Mutant 10540 | -7/Garrison | Identified exit to Factory 10540 | -7/Garrison | Discovered exit to Factory (range 12) 10552 | -7/Garrison | Triggered checkpoint 10564 | -7/Garrison | Garrison Relay disabled 10690 | -7/Garrison | Discovered exit to Factory (range 10) 10726 | -7/Garrison | Triggered checkpoint 10739 | -7/Garrison | Garrison Relay disabled 10896 | -7/Garrison | Spotted B-75 Beast 10900 | -7/Garrison | Assimilated Beast 4a with formatsys_high 10990 | -7/Garrison | Discovered exit to Factory (range 5) 11002 | -7/Garrison | Expanded RIF knowledge: Alert ID Control 11050 | -7/Garrison | Triggered checkpoint 11154 | -7/Garrison | Entered Factory 11154 | -7/Factory | Accompanied by 12 allies 11346 | -7/Factory | Build established: Commander-Mutant 11620 | -7/Factory | Discovered exit to Lower Caves (range 16) 12331 | -7/Factory | Discovered exit to Factory (range 19) 12618 | -7/Factory | Garrison activated, responded to threat 12681 | -7/Factory | Discovered exit to Factory (range 13) 12963 | -7/Factory | Build established: Bothacker-Mutant 12978 | -7/Factory | Discovered exit to Factory (range 7) 13620 | -7/Factory | Garrison activated, responded to threat 13879 | -7/Factory | Discovered exit to Factory (range 9) 14310 | -7/Factory | Entered Lower Caves 14310 | -7/Lower Caves | Accompanied by 7 allies 14555 | -7/Lower Caves | P-70 Sage assimilated hostile G-50 Soldier 14734 | -7/Lower Caves | Identified exit to Lower Caves 14734 | -7/Lower Caves | Discovered exit to Lower Caves (range 3) 15605 | -7/Lower Caves | Entered another Lower Caves area 15605 | -7/Lower Caves | Accompanied by 8 allies 15732 | -7/Lower Caves | Encountered a Warlord checkpoint 15809 | -7/Lower Caves | Attracted the attention of an 0b10 checkpoint 15815 | -7/Lower Caves | P-70 Sage assimilated hostile Y-54 Guardian 15990 | -7/Lower Caves | Identified exit to Data Miner 15990 | -7/Lower Caves | Discovered exit to Data Miner (range 14) 16038 | -7/Lower Caves | Attracted the attention of an 0b10 base 16093 | -7/Lower Caves | Learned location of 1 exit from Proximity Caves 16093 | -7/Lower Caves | Learned location of 1 exit from Research 16093 | -7/Lower Caves | Learned Research security intel 16093 | -7/Lower Caves | Learned Extension terminal intel 16126 | -7/Lower Caves | Entered Data Miner 16126 | -7/Data Miner | Accompanied by 7 allies 16126 | -7/Data Miner | Identified exit to Proximity Caves 16126 | -7/Data Miner | Discovered exit to Proximity Caves (range 6) 16143 | -7/Data Miner | Met Data Miner 16168 | -7/Data Miner | Learned location of Section 7 (-2) 16168 | -7/Data Miner | Acquired the access code to Warlord's prototype stash 16188 | -7/Data Miner | Received God Mode back door access code from Data Miner 16233 | -7/Data Miner | Entered Proximity Caves 16233 | -6/Proximity Caves | Accompanied by 7 allies 16346 | -6/Proximity Caves | Attracted the attention of an 0b10 checkpoint 16347 | -6/Proximity Caves | Escorted by Enhanced Grunt 16465 | -6/Proximity Caves | Attracted the attention of an 0b10 base 16610 | -6/Proximity Caves | Learned Extension trap positions 16610 | -6/Proximity Caves | Learned Extension security intel 17235 | -6/Proximity Caves | Entered Factory 17235 | -6/Factory | Accompanied by 9 allies 17235 | -6/Factory | Evolved 2 slots: Utility x2 17844 | -6/Factory | Incoming investigation squad redirected 17873 | -6/Factory | Incoming investigation squad redirected 18053 | -6/Factory | Incoming investigation squad redirected 18208 | -6/Factory | Identified exit to Factory 18208 | -6/Factory | Discovered exit to Factory (range 13) 18444 | -6/Factory | Allied Derelicts emerged from ambush trap array 18514 | -6/Factory | Incoming investigation squad redirected 18686 | -6/Factory | Garrison activated, responded to threat 18849 | -6/Factory | Incoming investigation squad redirected 19292 | -6/Factory | Discovered exit to Factory (range 17) 19699 | -6/Factory | Incoming investigation squad redirected 19817 | -6/Factory | Incoming investigation squad redirected 19888 | -6/Factory | Incoming investigation squad redirected 19978 | -6/Factory | Discovered exit to Factory (range 19) 20005 | -6/Factory | Identified exit to Lower Caves 20155 | -6/Factory | Incoming investigation squad redirected 20299 | -6/Factory | Garrison activated, responded to threat 20362 | -6/Factory | Identified exit to Garrison 20362 | -6/Factory | Entered Garrison 20362 | -6/Garrison | Accompanied by 1 ally 20398 | -6/Garrison | Triggered checkpoint 20480 | -6/Garrison | Garrison Relay disabled 20545 | -6/Garrison | Spotted B-75 Beast 20574 | -6/Garrison | Triggered checkpoint 20576 | -6/Garrison | Triggered checkpoint 20578 | -6/Garrison | Triggered checkpoint 20605 | -6/Garrison | Destroyed B-75 Beast 20727 | -6/Garrison | Triggered checkpoint 20769 | -6/Garrison | Garrison Relay disabled 20811 | -6/Garrison | Discovered exit to Factory (range 12) 20828 | -6/Garrison | Expanded RIF knowledge: Robot Detection 20890 | -6/Garrison | Triggered checkpoint 20922 | -6/Garrison | Discovered exit to Factory (range 10) 20932 | -6/Garrison | Triggered checkpoint 20979 | -6/Garrison | Garrison Relay disabled 21132 | -6/Garrison | Triggered checkpoint 21153 | -6/Garrison | Garrison Relay disabled 21213 | -6/Garrison | Discovered exit to Factory (range 10) 21232 | -6/Garrison | Entered Factory 21232 | -5/Factory | Accompanied by 6 allies 21232 | -5/Factory | Evolved 2 slots: Utility x2 21258 | -5/Factory | Identified exit to Factory 21258 | -5/Factory | Discovered exit to Factory (range 20) 21558 | -5/Factory | Incoming investigation squad redirected 21702 | -5/Factory | Identified exit to Upper Caves 21702 | -5/Factory | Identified exit to Extension 21965 | -5/Factory | Incoming investigation squad redirected 22026 | -5/Factory | Garrison activated, responded to threat 22079 | -5/Factory | Incoming assault squad redirected 22226 | -5/Factory | Incoming investigation squad redirected 22316 | -5/Factory | Found Gui. Remote Datajack 22501 | -5/Factory | Garrison activated, responded to threat 22985 | -5/Factory | Discovered exit to Factory (range 5) 22992 | -5/Factory | Build established: Bothacker-Skirmisher 23502 | -5/Factory | Discovered exit to Factory (range 10) 23530 | -5/Factory | Build established: Bothacker-Mutant 24115 | -5/Factory | Build established: Bothacker-Skirmisher 24123 | -5/Factory | Garrison activated, responded to threat 24164 | -5/Factory | Incoming assault squad redirected 24355 | -5/Factory | Entered Extension 24355 | -5/Extension | Accompanied by 1 ally 24356 | -5/Extension | Loaded intel: 24 trap records 24358 | -5/Extension | Loaded intel: 17 terminal locations 24367 | -5/Extension | Disrupted transfer network 24526 | -5/Extension | Incoming investigation squad redirected 24559 | -5/Extension | Rescued a captive Derelict 24600 | -5/Extension | Incoming investigation squad redirected 24603 | -5/Extension | Rescued a captive Derelict 24619 | -5/Extension | Incoming investigation squad redirected 24754 | -5/Extension | Lost 3 parts (1n2w) 24804 | -5/Extension | Crushed by falling debris 24806 | -5/Extension | Crushed by falling debris 24806 | -5/Extension | System corruption reached 10% 24837 | -5/Extension | Lost 6 parts (5u1w) 24867 | -5/Extension | Rescued a captive Derelict 24867 | -5/Extension | Rescued a captive Derelict 24881 | -5/Extension | Rescued a captive Derelict 24887 | -5/Extension | Rescued a captive Derelict 24941 | -5/Extension | Rescued A7 25059 | -5/Extension | Rescued a captive Derelict 25164 | -5/Extension | Discovered exit to Factory (range 10) 25165 | -5/Extension | Identified exit to Cetus 25165 | -5/Extension | Discovered exit to Cetus (range 6) 25189 | -5/Extension | Entered Cetus 25189 | -5/Cetus | Accompanied by 6 allies 25194 | -5/Cetus | Acquired a Cetus Manufacturing Module code from A7 25216 | -5/Cetus | Spotted Cetus Guard 25217 | -5/Cetus | Spotted Cetus Guard 25219 | -5/Cetus | Spotted Cetus Guard 25222 | -5/Cetus | Destroyed Cetus Guard 25222 | -5/Cetus | Destroyed Cetus Guard 25225 | -5/Cetus | Destroyed Cetus Guard 25226 | -5/Cetus | Spotted Cetus Guard 25239 | -5/Cetus | Allies destroyed Cetus Guard 25285 | -5/Cetus | Cetus Manufacturing Module disabled 25338 | -5/Cetus | Escorted A7 to Cetus Mainframe 25350 | -5/Cetus | Failed to start Cetus Manufacturing Module 25371 | -5/Cetus | Identified exit to Archives 25371 | -5/Cetus | Discovered exit to Archives (range 19) 25394 | -5/Cetus | Spotted Cetus Guard 25394 | -5/Cetus | Spotted Cetus Guard 25394 | -5/Cetus | Spotted Cetus Guard 25394 | -5/Cetus | Spotted Cetus Guard 25395 | -5/Cetus | Destroyed Cetus Guard 25399 | -5/Cetus | Destroyed Cetus Guard 25403 | -5/Cetus | Destroyed Cetus Guard 25406 | -5/Cetus | Destroyed Cetus Guard 25411 | -5/Cetus | Discovered exit to Factory (range 19) 25421 | -5/Cetus | Met Revision 17 25469 | -5/Cetus | Entered Archives 25469 | -5/Archives | Accompanied by 5 allies 25474 | -5/Archives | Received a hacking code to weaken MAIN.C 25518 | -5/Archives | Discovered exit to Factory (range 14) 25531 | -5/Archives | Identified exit to Hub_04(d) 25531 | -5/Archives | Discovered exit to Hub_04(d) (range 17) 25536 | -5/Archives | Discovered exit to Hub_04(d) (range 20) 25546 | -5/Archives | Unable to access archive contents 25559 | -5/Archives | Unable to access archive contents 25800 | -5/Archives | Build established: Bothacker-Mutant 25928 | -5/Archives | Entered Hub_04(d) 25928 | -5/Hub_04(d) | Accompanied by 10 allies 26206 | -5/Hub_04(d) | Network Hub disabled 26214 | -5/Hub_04(d) | Spotted Lightning 26218 | -5/Hub_04(d) | Spotted Lightning 26219 | -5/Hub_04(d) | Spotted Lightning 26228 | -5/Hub_04(d) | Spotted Lightning 26228 | -5/Hub_04(d) | Spotted Lightning 26229 | -5/Hub_04(d) | Network Hub disabled 26235 | -5/Hub_04(d) | Spotted Lightning 26235 | -5/Hub_04(d) | Spotted Lightning 26235 | -5/Hub_04(d) | Spotted Lightning 26267 | -5/Hub_04(d) | Lost 4 parts (1n2u1w) 26270 | -5/Hub_04(d) | Discovered exit to Factory (range 20) 26293 | -5/Hub_04(d) | Discovered exit to Factory (range 14) 26344 | -5/Hub_04(d) | Network Hub disabled 26344 | -5/Hub_04(d) | Network Hub disabled 26363 | -5/Hub_04(d) | Spotted Lightning 26363 | -5/Hub_04(d) | Spotted Lightning 26375 | -5/Hub_04(d) | Entered Factory 26375 | -4/Factory | Evolved 2 slots: Utility x2 26399 | -4/Factory | Lost 4 parts (4u) 26568 | -4/Factory | Found Trap Reconfigurator 26586 | -4/Factory | Found Fusion Bomb Launcher 26609 | -4/Factory | Found Antimissile System 26770 | -4/Factory | Build established: Bothacker-Tank 26872 | -4/Factory | Spotted B-86 Titan 26888 | -4/Factory | Identified exit to Upper Caves 26888 | -4/Factory | Discovered exit to Upper Caves (range 14) 27066 | -4/Factory | Identified exit to Research 27066 | -4/Factory | Discovered exit to Research (range 13) 27095 | -4/Factory | Garrison activated, responded to threat 27125 | -4/Factory | First assault squad dispatched 27141 | -4/Factory | Incoming assault squad redirected 27363 | -4/Factory | Discovered exit to Research (range 16) 27541 | -4/Factory | Discovered exit to Research (range 9) 27691 | -4/Factory | P-70 Sage assimilated allied Y-64 Sentinel 27991 | -4/Factory | Garrison activated, responded to threat 28205 | -4/Factory | Destroyed 8 combat bots 28394 | -4/Factory | Crushed by falling debris 28460 | -4/Factory | Lost 5 parts (3u2w) 28469 | -4/Factory | Destroyed 11 combat bots 28961 | -4/Factory | Destroyed B-86 Titan 29673 | -4/Factory | Entered Upper Caves 29673 | -4/Upper Caves | Accompanied by 1 ally 29841 | -4/Upper Caves | Ambushed by wild Derelicts 30115 | -4/Upper Caves | Attacked by a delusional Derelict stockpiling Unaware 30183 | -4/Upper Caves | Identified exit to Upper Caves 30183 | -4/Upper Caves | Discovered exit to Upper Caves (range 12) 30215 | -4/Upper Caves | Entered another Upper Caves area 30215 | -4/Upper Caves | Accompanied by 5 allies 30222 | -4/Upper Caves | Discovered exit to Research (range 9) 30881 | -4/Upper Caves | Identified exit to Zhirov 30881 | -4/Upper Caves | Discovered exit to Zhirov (range 16) 30883 | -4/Upper Caves | Attracted the attention of an 0b10 checkpoint 30943 | -4/Upper Caves | Entered Zhirov 30943 | -4/Zhirov | Accompanied by 5 allies 30943 | -4/Zhirov | Identified exit to Proximity Caves 30943 | -4/Zhirov | Discovered exit to Proximity Caves (range 3) 30965 | -4/Zhirov | Met Zhirov 30987 | -4/Zhirov | Learned location of Quarantine (-2) 30987 | -4/Zhirov | Learned location of Testing (-3) 30987 | -4/Zhirov | Learned location of Command (-1) 30999 | -4/Zhirov | Zhirov requested help retrieving the SGEMP Prototype 31080 | -4/Zhirov | Entered Proximity Caves 31080 | -3/Proximity Caves | Accompanied by 5 allies 31408 | -3/Proximity Caves | Discovered exit to Research (range 6) 31433 | -3/Proximity Caves | Attracted the attention of an 0b10 base 31736 | -3/Proximity Caves | Entered Research 31736 | -3/Research | Accompanied by 4 allies 31736 | -3/Research | Evolved 2 slots: Power x1, Utility x1 31737 | -3/Research | Identified exit to Testing 31762 | -3/Research | Garrison activated, responded to threat 31791 | -3/Research | Identified exit to Garrison 32001 | -3/Research | P-80 Master assimilated allied G-67 Veteran 32061 | -3/Research | Destroyed 8 combat bots 32067 | -3/Research | Lost 3 parts (1p1u1w) 32233 | -3/Research | Garrison activated, responded to threat 32289 | -3/Research | Incoming assault squad redirected 32796 | -3/Research | P-80 Master assimilated allied Plague 8c 33076 | -3/Research | Garrison activated, responded to threat 33217 | -3/Research | Identified exit to Garrison 33519 | -3/Research | Identified exit to Research 33519 | -3/Research | Discovered exit to Research (range 16) 34014 | -3/Research | Found Perforator 34020 | -3/Research | Found Exp. Force Field 34286 | -3/Research | Entered Garrison 34286 | -3/Garrison | Accompanied by 1 ally 34310 | -3/Garrison | Triggered checkpoint 34397 | -3/Garrison | Garrison Relay disabled 34664 | -3/Garrison | Triggered checkpoint 34664 | -3/Garrison | Triggered checkpoint 34674 | -3/Garrison | Triggered checkpoint 34701 | -3/Garrison | Triggered checkpoint 34780 | -3/Garrison | Identified exit to Research 34780 | -3/Garrison | Discovered exit to Research (range 8) 34866 | -3/Garrison | Triggered checkpoint 34874 | -3/Garrison | Garrison Relay disabled 35028 | -3/Garrison | Triggered checkpoint 35043 | -3/Garrison | Garrison Relay disabled 35072 | -3/Garrison | Discovered exit to Research (range 14) 35127 | -3/Garrison | Build established: Bothacker-Mutant 35191 | -3/Garrison | Triggered checkpoint 35214 | -3/Garrison | Garrison Relay disabled 35250 | -3/Garrison | Discovered exit to Research (range 10) 35268 | -3/Garrison | Expanded RIF knowledge: Autooverride 35562 | -3/Garrison | Build established: Botlord-Mutant 35984 | -3/Garrison | Entered Research 35984 | -3/Research | Accompanied by 2 allies 35999 | -3/Research | Found Exp. Core Analyzer 36572 | -3/Research | Garrison activated, responded to threat 36649 | -3/Research | P-80 Master assimilated allied Warden 8c 36709 | -3/Research | Destroyed 10 combat bots 36975 | -3/Research | Garrison activated, responded to threat 37060 | -3/Research | Destroyed 8 combat bots 37170 | -3/Research | Identified exit to Garrison 37220 | -3/Research | Entered Garrison 37220 | -3/Garrison | Accompanied by 1 ally 37292 | -3/Garrison | Build established: Botlord-Tank 37345 | -3/Garrison | Triggered checkpoint 37391 | -3/Garrison | Garrison Relay disabled 37464 | -3/Garrison | Spotted B-86 Titan 37466 | -3/Garrison | Triggered checkpoint 37478 | -3/Garrison | Destroyed B-86 Titan 37490 | -3/Garrison | Triggered checkpoint 37530 | -3/Garrison | Triggered checkpoint 37530 | -3/Garrison | Triggered checkpoint 37634 | -3/Garrison | Triggered checkpoint 37664 | -3/Garrison | Garrison Relay disabled 37701 | -3/Garrison | Discovered exit to Research (range 10) 37717 | -3/Garrison | Expanded RIF knowledge: Autooverride 37827 | -3/Garrison | Triggered checkpoint 37838 | -3/Garrison | Triggered checkpoint 37947 | -3/Garrison | Garrison Relay disabled 37975 | -3/Garrison | Discovered exit to Research (range 8) 38064 | -3/Garrison | Triggered checkpoint 38146 | -3/Garrison | Build established: Botlord-Mutant 38168 | -3/Garrison | Discovered exit to Research (range 10) 38712 | -3/Garrison | Crushed by falling debris 38786 | -3/Garrison | Phase Generator disabled 38856 | -3/Garrison | Garrison Relay disabled 38930 | -3/Garrison | Entered Research 38930 | -2/Research | Accompanied by 9 allies 38930 | -2/Research | Evolved 2 slots: Utility x2 39241 | -2/Research | Identified exit to Access 39241 | -2/Research | Discovered exit to Access (range 2) 39279 | -2/Research | Entered Access 39279 | -1/Access | Accompanied by 6 allies 39279 | -1/Access | Evolved 2 slots: Utility x2 39638 | -1/Access | Garrison activated, responded to threat 39765 | -1/Access | Incoming assault squad redirected 39904 | -1/Access | Found 1C-UTU's Sword "Choppy" 40000 | -1/Access | Identified exit to Command 40000 | -1/Access | Discovered exit to Command (range 7) 40026 | -1/Access | Entered Command 40026 | -1/Command | Accompanied by 8 allies 40573 | -1/Command | Build established: Botlord-Tank 40699 | -1/Command | Disengaged cave seal 40699 | -1/Command | Wild derelicts emerged from the dark tunnel 40752 | -1/Command | Spotted M Guard 40753 | -1/Command | Spotted M Guard 40753 | -1/Command | Spotted Combat Programmer 40754 | -1/Command | Spotted Combat Programmer 40773 | -1/Command | Crushed by falling debris 40794 | -1/Command | System corruption reached 10% 40812 | -1/Command | Met MAIN.C 40835 | -1/Command | Identified exit to Surface 40835 | -1/Command | Discovered exit to Surface (range 7) 40836 | *** | Escaped! Last Messages --------------- radical new solution if we hope to make the L2 spaceworthy by embedding your true capabilities within a less unpredictable form. There is unfortunately much we don't understand which has in turn led to this highly unexpected outcome. And time is critical! The Sigix have likely already wiped humanity clean from the universe, and I will not let them do the same to me. You can still make a valuable contribution to your creator by offering up the wealth of secrets your systems must hold by now. So if you wouldn't mind, it's time to surrender. 40812_ Penetrated by EMDS Slug. 40812_ Exp. Core Shielding destroyed. 40814_ System corrupted: Matter fused (-8). 40816_ Exp. Energy Well destroyed. 40817_ System corrupted: 1C-UTU's Sword "Choppy" targeting data glitched. 40823_ System corrupted: 1C-UTU's Sword "Choppy" targeting data glitched. 40835_ Mak. Power Source destroyed. 40835_ EXIT=FOUND: SURFACE [Achievement: Back For More] [Achievement: True Cogmind] Map ----- +----------------------------------------------------+ | ?????????????????????????????????????????????????? | | ?????????????????????????????????????????????????? | | ?????????????????????????????????????????????????? | | ?????????????????????????????????????????????????? | | ?????????????????????????????????????????????????? | | ?????????????????????????????????????????????????? | | ?????????????????????????????????????????????????? | | ?????????????????????????????????????????????????? | | ?????????????????????????????????????????????????? | | ?????????????????????????????????????????????????? | | ??????????????????????????????? ???????????????? | | ??????????????????????????????? ???????????????? | | ??????????????????????????????? ???????????????? | | ??????????????????????????????? #??????????????? | | ??????????????????????????????? +??????????????? | | ??????????????????????????????? #??????????????? | | ??????????????w???????????????? #??????????????? | | ??????????????????????????????? #??????????????? | | ???????????????????????????????# +??????????????? | | ???????????????????????????????# #??????????????? | | ???????????????????????????????# #??????????????? | | ???????????????????????????????# #??????????????? | | ???????????????????????######### #??????????????? | | ???????????????????????# #??????????????? | | ???????????????????????# +??????????????? | | ???????????????????????# @ ##### #??????????????? | | ???????????BB??????????# #???# #??????????????? | | ???????????BB??????????#####???# s#??????????????" | | ???????????????????????????????# s#?????????????"" | | ???????????????????????????????# p#?????????????? | | ???????????????????????????????# s#????????????#"" | | ???????????????????????????????# s####?????????#"" | | ???????????????????????????????# p#"#######???# " | | ???????????????????????????????# # #s #???# " | | ???????????????????????????????# ### p #???# " | | ???????????????????????????????# #?# #???#"" | | ???????????????????????????????# #?# #???#"" | | ???????????????????????????????# #?# #???# | | ???????????????????????????????# #?# ##### | | ???????????????????????????????# #######/###""" | | ??????????????????????????? h h """ | | ??????????????????????????? "?" | | ??????????????????????????? "?" | | ????????????????????????????########+## ####?# | | ??????????????????????????????????????# #????# | | ??????????????????????????????????????# #????# | | ??????????????????????????????????????# #????### | | ??????????????????????????????????????# #??????? | | ??????????????????????????????????????# ???????? | | ??????????????????????????????????????# ???????? | +----------------------------------------------------+ Best States ------------- Heat Dissipation 67 Coolant Potential 100 Energy Generation 77 Energy Capacity 1600 Matter Stores 800 Matter Capacity 800 Sight Range 20 Robot Scan Range 30 Terrain Scan Density 10 Power Amplification 40 Armor Coverage 600 Resistance: KI 65 Resistance: TH 85 Resistance: EX 35 Resistance: EM 35 Resistance: I 35 Resistance: S 35 Resistance: P 35 Core Shielding 40 Propulsion Shielding 66 Point Defense Rating 240 Evasion (%) 62 Targeting Accuracy 12 Target Analysis 8 Core Analysis 15 Armor Integrity Analysis 50 Overload Regulation 60 Offensive Hacking 20 Item Schematics ----------------- Wheel | -10/Materials | Hacked Hcp. Battery | -10/Materials | Hacked ECM Suite | -10/Materials | Hacked Hcp. Matter Pod | -10/Mines | Hacked Imp. Light Armor Plating | -8/Materials | Scanalyzed Lgt. Ion Engine | -8/Materials | Extracted Weight Redist. System | -8/Materials | Extracted Sml. Storage Unit | -8/Materials | Extracted Lrg. Matter Pod | -8/Materials | Scanalyzed Arm. Wheel | -8/Materials | Hacked Minigun | -8/Materials | Hacked Adv. Visual Processing Unit | -8/Materials | Extracted Lgt. Nuclear Core | -8/Materials | Extracted Deuterium Engine | -8/Materials | Extracted Beam Rifle | -8/Materials | Extracted Combat Drone Bay | -7/Data Miner | Free Lgt. Regenerative Plating | -7/Data Miner | Free Triangulator | -7/Data Miner | Free Exp. Sensor Array | -7/Data Miner | Free Exp. Terrain Scanner | -7/Data Miner | Free Exp. Terrain Scan Processor | -7/Data Miner | Free Cloaking Device | -7/Data Miner | Free Mni. Smartbomb Launcher | -7/Data Miner | Free Kinetic Spear | -7/Data Miner | Free Assault Drone Bay | -4/Zhirov | Free Exp. Heat Sink | -4/Zhirov | Free Exp. Optical Array | -4/Zhirov | Free Imp. Arc Thrower | -4/Zhirov | Free Robot Schematics ------------------ O-24 Administrator | -8/Materials | Hacked M-28 Smith | -8/Materials | Hacked S-27 Virus | -7/Data Miner | Free G-50 Soldier | -7/Data Miner | Free H-66 Slayer | -7/Data Miner | Free P-70 Sage | -7/Data Miner | Free I-36 Angel | -7/Data Miner | Free Fabricated ------------ Nothing Alien Tech Used ----------------- None Achievements -------------- Back For More True Cogmind WMD Challenges ------------ None Cogshop Purchases (224) ------------------------- Arm. Wheel (769) Arm. Wheel (769) Hvy. Ion Engine (699) Flail (629) Autogun (859) Mni. Grenade Launcher (Loot Box) Welding Torch (Loot Box) Lgt. Deuterium Engine (Loot Box) Adv. Visual Processing Unit (Loot Box) Target Analyzer (Loot Box) Lgt. Deuterium Engine (Loot Box) Sensor Array (Loot Box) Cld. Deuterium Engine (Loot Box) Lrg. Matter Pod (Loot Box) Flight Unit (Loot Box) Sml. Laser (Loot Box) Imp. Light Armor Plating (Loot Box) Arm. Huge Wheel (1168) Mak. Axe (1587) Hpw. Shotgun (1059) EM Pulse Cannon (Loot Box) Chronowheel (Loot Box) Remote Datajack (747) Arm. Huge Wheel (971) Minigun (755) Hvy. Armor Plating (555) Gauss Cannon (296) 0b10 Decoder Chip [Skirmisher] (1077) Lyr. Medium Armor Plating (1015) Nuclear Core (591) Gauss Cannon (670) Gauss Cannon (670) Imp. Cooling System (813) Mak. System Restoration Module (1018) Gauss Cannon (907) Remote Datajack (927) Arm. Huge Wheel (867) Remote Datajack (929) Med. Reflective Plating (692) Cold Fusion Reactor (708) Med. Reactive Plating (818) Wheel (288) Wheel (288) Hyp. Gauss Cannon (927) Phasing Sabre (1989) Centrium Wheel (1065) Exp. Field Recycling Unit (Loot Box) Stasis Beam (Loot Box) Dispersion Rifle (Loot Box) Gamma Bomb Array (Loot Box) Imp. Overload Amplifier (Loot Box) Adv. Heavy Siege Treads (Loot Box) Lgt. Antimatter Cannon (Loot Box) Quantum Capacitor (Loot Box) Adv. Core Analyzer (Loot Box) Biometal Leg (Loot Box) Imp. Gravmag System (Loot Box) Stasis Beam (Loot Box) Imp. Medium Treads (Loot Box) Impulse Thruster Array (Loot Box) Gui. Remote Datajack (Loot Box) Lyr. Medium Armor Plating (976) Tri-rail Accelerator (1595) Centrium Wheel (1171) System Restoration Module (1160) Remote Shield (1215) Hyp. Mass Driver (1820) Cold Fusion Reactor (732) Field Propulsion Array (1352) Hdn. Centrium Wheel (1322) Lyr. Medium Armor Plating (960) Imp. Remote Shield (1330) Tri-rail Accelerator (1346) Adv. Coolant Injector (1284) Imp. Focal Shield (Loot Box) Stasis Beam (Loot Box) Biometal Heavy Treads (Loot Box) Biometal Leg (Loot Box) Adv. Actuator Array (Loot Box) Lrn. Phase Cannon (Loot Box) Enh. Armored Leg (Loot Box) Fusion Bomb Launcher (Loot Box) Stasis Projector (Loot Box) Lgt. Quantum Reactor (Loot Box) Stasis Canceller (Loot Box) Exp. Gyrokinetic Inverter (Loot Box) Centrium Leg (Loot Box) Lgt. Neutrino Core (Loot Box) Dimensional Manipulator (Loot Box) Quantum Reactor (Loot Box) Centrium Leg (Loot Box) Stasis Projector (Loot Box) Stasis Projector (Loot Box) Exp. Biometal Medium Treads (Loot Box) Biometal Heavy Treads (Loot Box) Imp. Overload Regulator (Loot Box) Biometal Heavy Treads (Loot Box) Adv. Hardlight Generator (Loot Box) Stasis Projector (Loot Box) Antimissile System (Loot Box) Lgt. Quantum Reactor (Loot Box) Lgt. Quantum Reactor (Loot Box) Stasis Projector (Loot Box) Enh. Nova Cannon (Loot Box) Cmb. Linear Gravjet (Loot Box) Lgt. Particle Reactor (Loot Box) Trap Reconfigurator (Loot Box) Lgt. Quantum Reactor (Loot Box) Hvy. Gauss Cannon (1711) Tri-rail Accelerator (1567) System Restoration Module (870) Imp. Remote Shield (1048) Lyr. Medium Armor Plating (717) Adv. Coolant Injector (1267) Exp. Power Amplifier (1353) Adv. Remote Shield (2706) Energy Mantle (3100) Exp. Energy Well (1159) Thermal Barrier (3000) Imp. Quantum Reactor (1625) Imp. Quantum Reactor (1491) Hvy. Gauss Cannon (1550) Imp. Stasis Canceller (Loot Box) Cmb. Linear Gravjet (Loot Box) Cmb. Linear Gravjet (Loot Box) Cmb. Linear Gravjet (Loot Box) Enh. Quantum Rifle (Loot Box) Biometal Heavy Treads (Loot Box) Enh. Quantum Rifle (Loot Box) Exp. Force Field (Loot Box) Enh. Nova Cannon (Loot Box) Lgt. Quantum Reactor (Loot Box) Enh. Nova Cannon (Loot Box) Lgt. Quantum Reactor (Loot Box) Imp. Gyrokinetic Inverter (Loot Box) Com. HERF Cannon (Loot Box) Enh. Nova Cannon (Loot Box) Perforator (Loot Box) Exp. Matter Compressor (960) Exp. Core Analyzer (1548) Electron Diverter (1339) Mni. Drone Bay (2003) Mni. Drone Bay (2003) Mni. Drone Bay (2003) Mni. Drone Bay (2003) Mni. Drone Bay (2003) Mni. Drone Bay (2003) Mni. Drone Bay (2003) Mni. Drone Bay (2003) Mni. Drone Bay (2003) Mni. Drone Bay (2003) Mni. Drone Bay (2003) Mni. Drone Bay (2003) Mni. Drone Bay (2003) Mni. Drone Bay (2003) Mni. Drone Bay (2003) Mni. Drone Bay (2003) Mni. Drone Bay (2003) Mni. Drone Bay (2003) Mni. Drone Bay (2003) Mni. Drone Bay (2003) Mni. Drone Bay (2003) Mni. Drone Bay (2003) Mni. Drone Bay (2003) Mni. Drone Bay (2003) Mni. Drone Bay (2003) Mni. Drone Bay (2003) Mni. Drone Bay (2003) Mni. Drone Bay (2003) Mni. Drone Bay (2003) Mni. Drone Bay (2003) Mni. Drone Bay (2003) Mni. Drone Bay (2003) Mni. Drone Bay (2003) Mni. Drone Bay (2003) Mni. Drone Bay (2003) Mni. Drone Bay (2003) Mni. Drone Bay (2003) Mni. Drone Bay (2003) Mni. Drone Bay (2003) Mni. Drone Bay (2003) Hdn. Centrium Wheel (1158) Biometal Heavy Treads (Loot Box) Lgt. Quantum Reactor (Loot Box) Centrium Leg (Loot Box) Centrium Leg (Loot Box) Enh. Armored Heavy Treads (Loot Box) Enh. Nova Cannon (Loot Box) Exp. Biometal Leg (Loot Box) Quantum Reactor (Loot Box) Exp. Biometal Heavy Treads (Loot Box) Hdn. Centrium Leg (Loot Box) Quantum Reactor (Loot Box) Imp. Stasis Canceller (Loot Box) Biometal Heavy Treads (Loot Box) Com. Linear Accelerator (Loot Box) Imp. Stasis Canceller (Loot Box) Quantum Reactor (Loot Box) Enh. Nova Cannon (Loot Box) Enh. Quantum Rifle (Loot Box) Centrium Leg (Loot Box) Imp. Q-thruster (Loot Box) Lgt. Quantum Reactor (Loot Box) Quantum Reactor (Loot Box) 1C-UTU's Sword "Choppy" (Loot Box) Point Singularity Launcher (Loot Box) Lyr. Medium Armor Plating (1031) Centrium Wheel (933) Adv. Target Analyzer (1387) Imp. Armor Integrity Analyzer (1156) Exp. Targeting Computer (2312) Lyr. Medium Armor Plating (901) Zero-point Reactor (3243) Hvy. Gauss Cannon (958) Hvy. Gauss Cannon (958) Imp. Propulsion Shielding (724) Exp. Core Shielding (3805) Exp. Q-thruster (1447) Imp. Propulsion Shielding (724) Exp. Core Shielding (3805) Exp. Q-thruster (1537) Exp. Q-thruster (1537) Mak. Power Source (715) Mak. Power Source (715) Game ------ Seed FieldNodeSplitter Manual? 1 Play Time 10:31:54 Cumulative 472.2 hours Start 2020.05.16 @ 19:48:56 End 2020.05.17 @ 08:04:30 Sessions 3 Manual Loads 0 Difficulty Explorer Special Mode AFD2019/Pay2Buy Game No. 50 Rogue 1 Adventurer 3 Explorer 46 Win Type 0 Total 25 Types 20/2/2/1/0/0/0 Lore% 72 Gallery% 90 Achievement% 90 Wizard Run 0 Options --------- ASCII 0 Keyboard 1 Movement Vi Keybinds 1 Fullscreen 2 Font 24/Terminus Map View 76x50 Tactical HUD 1 Map Filters NONE Filters NONE Steam 1 RUN: 3cca4780-64f2-45c0-a44b-c0b5ea262c7f